Workbook

Sheet Śledzenie ocen
B1: Tutaj wpisz liczby punktów
C3: Zajęcia | D3: Typ | E3: Opis | F3: Punkty
C4: Współczesny język francuski | D4: Prace domowe | E4: Historia II Wojny Światowej | F4: 80%
C5: Zaawansowane programowanie w języku Java | D5: Egzamin śródsemestralny | F5: 75%
C6: Hiszpański | D6: Prace domowe | F6: 50%
C7: Fizyka teoretyczna | D7: Prace domowe | F7: 95%
C8: Współczesny język francuski | D8: Prace domowe | E8: Historia I Wojny Światowej | F8: 90%
C9: Współczesny język francuski | D9: Prace domowe | E9: Strony 30–41 | F9: 80%
C10: Wypracowania | D10: Esej | E10: Tekst na temat perswazji | F10: 95%
C11: Matematyka 1 | D11: Prace domowe | E11: Strony 21 i 26 | F11: 80%
C12: Matematyka 2 | D12: Prace domowe | E12: Strony 15 i 18 | F12: 85%
C13: Matematyka 1 | D13: Prace domowe | E13: Strony 34–36 | F13: 80%
C14: Matematyka 2 | D14: Test | F14: 95%

Sheet Twój wynik
B1: Twój wynik
C3: Sumy
C4: ="Godziny: "&SUM(tblZajęcia[Liczba punktowanych godzin]) -> Godziny: 24 | D4: =AVERAGE(D7:D31) -> 81% | E4: =AVERAGE(E7:E31) -> 2.71 | F4: =SUM(F7:F31) -> 2.63 | G4: =IFERROR(HLOOKUP(D4,lst_Przeliczenie_na_średnią_ocen,2),"") -> B-
C6: Zajęcia | D6: Procent | E6: Średnia ocen | F6: Średnia ważona ocen | G6: Stopień | H6: Ogólny wynik
C7: =Obliczenia!C6 -> Współczesny język francuski | D7: =Obliczenia!AL6 -> 83% | E7: =Obliczenia!AM6 -> 3.00 | F7: =IFERROR(E7*Ustawienia!D9/SUM(tblZajęcia[Liczba punktowanych godzin]),"") -> 0.38 | G7: =Obliczenia!AN6 -> B
C8: =Obliczenia!C7 -> Fizyka teoretyczna | D8: =Obliczenia!AL7 -> 95% | E8: =Obliczenia!AM7 -> 4.00 | F8: =IFERROR(E8*Ustawienia!D10/SUM(tblZajęcia[Liczba punktowanych godzin]),"") -> 0.50 | G8: =Obliczenia!AN7 -> A
C9: =Obliczenia!C8 -> Matematyka 1 | D9: =Obliczenia!AL8 -> 80% | E9: =Obliczenia!AM8 -> 2.67 | F9: =IFERROR(E9*Ustawienia!D11/SUM(tblZajęcia[Liczba punktowanych godzin]),"") -> 0.45 | G9: =Obliczenia!AN8 -> B-
C10: =Obliczenia!C9 -> Matematyka 2 | D10: =Obliczenia!AL9 -> 89% | E10: =Obliczenia!AM9 -> 3.33 | F10: =IFERROR(E10*Ustawienia!D12/SUM(tblZajęcia[Liczba punktowanych godzin]),"") -> 0.56 | G10: =Obliczenia!AN9 -> B+
C11: =Obliczenia!C10 -> Zaawansowane programowanie w języku Java | D11: =Obliczenia!AL10 -> 75% | E11: =Obliczenia!AM10 -> 2.00 | F11: =IFERROR(E11*Ustawienia!D13/SUM(tblZajęcia[Liczba punktowanych godzin]),"") -> 0.42 | G11: =Obliczenia!AN10 -> C
C12: =Obliczenia!C11 -> Hiszpański | D12: =Obliczenia!AL11 -> 50% | E12: =Obliczenia!AM11 -> 0.00 | F12: =IFERROR(E12*Ustawienia!D14/SUM(tblZajęcia[Liczba punktowanych godzin]),"") -> 0.00 | G12: =Obliczenia!AN11 -> F
C13: =Obliczenia!C12 -> Wypracowania | D13: =Obliczenia!AL12 -> 95% | E13: =Obliczenia!AM12 -> 4.00 | F13: =IFERROR(E13*Ustawienia!D15/SUM(tblZajęcia[Liczba punktowanych godzin]),"") -> 0.33 | G13: =Obliczenia!AN12 -> A
C14: =Obliczenia!C13 ->  | D14: =Obliczenia!AL13 ->  | E14: =Obliczenia!AM13 ->  | F14: =IFERROR(E14*Ustawienia!D16/SUM(tblZajęcia[Liczba punktowanych godzin]),"") ->  | G14: =Obliczenia!AN13 -> 
C15: =Obliczenia!C14 ->  | D15: =Obliczenia!AL14 ->  | E15: =Obliczenia!AM14 ->  | F15: =IFERROR(E15*Ustawienia!D17/SUM(tblZajęcia[Liczba punktowanych godzin]),"") ->  | G15: =Obliczenia!AN14 -> 
C16: =Obliczenia!C15 ->  | D16: =Obliczenia!AL15 ->  | E16: =Obliczenia!AM15 ->  | F16: =IFERROR(E16*Ustawienia!D18/SUM(tblZajęcia[Liczba punktowanych godzin]),"") ->  | G16: =Obliczenia!AN15 -> 
C17: =Obliczenia!C16 ->  | D17: =Obliczenia!AL16 ->  | E17: =Obliczenia!AM16 ->  | F17: =IFERROR(E17*Ustawienia!D19/SUM(tblZajęcia[Liczba punktowanych godzin]),"") ->  | G17: =Obliczenia!AN16 -> 
C18: =Obliczenia!C17 ->  | D18: =Obliczenia!AL17 ->  | E18: =Obliczenia!AM17 ->  | F18: =IFERROR(E18*Ustawienia!D20/SUM(tblZajęcia[Liczba punktowanych godzin]),"") ->  | G18: =Obliczenia!AN17 -> 
C19: =Obliczenia!C18 ->  | D19: =Obliczenia!AL18 ->  | E19: =Obliczenia!AM18 ->  | F19: =IFERROR(E19*Ustawienia!D21/SUM(tblZajęcia[Liczba punktowanych godzin]),"") ->  | G19: =Obliczenia!AN18 -> 
C20: =Obliczenia!C19 ->  | D20: =Obliczenia!AL19 ->  | E20: =Obliczenia!AM19 ->  | F20: =IFERROR(E20*Ustawienia!D22/SUM(tblZajęcia[Liczba punktowanych godzin]),"") ->  | G20: =Obliczenia!AN19 -> 
C21: =Obliczenia!C20 ->  | D21: =Obliczenia!AL20 ->  | E21: =Obliczenia!AM20 ->  | F21: =IFERROR(E21*Ustawienia!D23/SUM(tblZajęcia[Liczba punktowanych godzin]),"") ->  | G21: =Obliczenia!AN20 -> 
C22: =Obliczenia!C21 ->  | D22: =Obliczenia!AL21 ->  | E22: =Obliczenia!AM21 ->  | F22: =IFERROR(E22*Ustawienia!D24/SUM(tblZajęcia[Liczba punktowanych godzin]),"") ->  | G22: =Obliczenia!AN21 -> 
C23: =Obliczenia!C22 ->  | D23: =Obliczenia!AL22 ->  | E23: =Obliczenia!AM22 ->  | F23: =IFERROR(E23*Ustawienia!D25/SUM(tblZajęcia[Liczba punktowanych godzin]),"") ->  | G23: =Obliczenia!AN22 -> 
C24: =Obliczenia!C23 ->  | D24: =Obliczenia!AL23 ->  | E24: =Obliczenia!AM23 ->  | F24: =IFERROR(E24*Ustawienia!D26/SUM(tblZajęcia[Liczba punktowanych godzin]),"") ->  | G24: =Obliczenia!AN23 -> 
C25: =Obliczenia!C24 ->  | D25: =Obliczenia!AL24 ->  | E25: =Obliczenia!AM24 ->  | F25: =IFERROR(E25*Ustawienia!D27/SUM(tblZajęcia[Liczba punktowanych godzin]),"") ->  | G25: =Obliczenia!AN24 -> 
C26: =Obliczenia!C25 ->  | D26: =Obliczenia!AL25 ->  | E26: =Obliczenia!AM25 ->  | F26: =IFERROR(E26*Ustawienia!D28/SUM(tblZajęcia[Liczba punktowanych godzin]),"") ->  | G26: =Obliczenia!AN25 -> 
C27: =Obliczenia!C26 ->  | D27: =Obliczenia!AL26 ->  | E27: =Obliczenia!AM26 ->  | F27: =IFERROR(E27*Ustawienia!D29/SUM(tblZajęcia[Liczba punktowanych godzin]),"") ->  | G27: =Obliczenia!AN26 -> 
C28: =Obliczenia!C27 ->  | D28: =Obliczenia!AL27 ->  | E28: =Obliczenia!AM27 ->  | F28: =IFERROR(E28*Ustawienia!D30/SUM(tblZajęcia[Liczba punktowanych godzin]),"") ->  | G28: =Obliczenia!AN27 -> 
C29: =Obliczenia!C28 ->  | D29: =Obliczenia!AL28 ->  | E29: =Obliczenia!AM28 ->  | F29: =IFERROR(E29*Ustawienia!D31/SUM(tblZajęcia[Liczba punktowanych godzin]),"") ->  | G29: =Obliczenia!AN28 -> 
C30: =Obliczenia!C29 ->  | D30: =Obliczenia!AL29 ->  | E30: =Obliczenia!AM29 ->  | F30: =IFERROR(E30*Ustawienia!D32/SUM(tblZajęcia[Liczba punktowanych godzin]),"") ->  | G30: =Obliczenia!AN29 -> 
C31: =Obliczenia!C30 ->  | D31: =Obliczenia!AL30 ->  | E31: =Obliczenia!AM30 ->  | F31: =IFERROR(E31*Ustawienia!D33/SUM(tblZajęcia[Liczba punktowanych godzin]),"") ->  | G31: =Obliczenia!AN30 -> 

Sheet Ustawienia
B1: Ustawienia
C2: Punktacja i przeliczenie na średnią ocen
C3: Wartość procentowa | D3: 0% | E3: 60% | F3: 63% | G3: 67% | H3: 70% | I3: 73% | J3: 77% | K3: 80% | L3: 83% | M3: 87% | N3: 90% | O3: 93% | P3: 97%
C4: Stopień | D4: F | E4: D- | F4: D | G4: D+ | H4: C- | I4: C | J4: C+ | K4: B- | L4: B | M4: B+ | N4: A- | O4: A | P4: A+
C5: Średnia ocen | D5: 0 | E5: 0.67 | F5: 1 | G5: 1.33 | H5: 1.67 | I5: 2 | J5: 2.33 | K5: 2.67 | L5: 3 | M5: 3.33 | N5: 3.67 | O5: 4 | P5: 4
C7: Ważona punktacja dla maksymalnie 25 zajęć
C8: Zajęcia, w których uczestniczysz | D8: Liczba punktowanych godzin | E8: Prace domowe | F8: Esej | G8: Test | H8: Projekt | I8: Egzamin śródsemestralny | J8: Egzamin końcowy | K8: Inne | L8: Suma (procent)
C9: Współczesny język francuski | D9: 3.0 | E9: 10% | F9: 15% | G9: 15% | H9: 10% | I9: 20% | J9: 30% | L9: =SUM(tblZajęcia[[#This Row],[Prace domowe]:[Inne]]) -> 100%
C10: Fizyka teoretyczna | D10: 3.0 | E10: 15% | F10: 15% | G10: 10% | H10: 10% | I10: 15% | J10: 30% | K10: 5% | L10: =SUM(tblZajęcia[[#This Row],[Prace domowe]:[Inne]]) -> 100%
C11: Matematyka 1 | D11: 4.0 | E11: 10% | F11: 15% | G11: 15% | H11: 10% | I11: 20% | J11: 30% | L11: =SUM(tblZajęcia[[#This Row],[Prace domowe]:[Inne]]) -> 100%
C12: Matematyka 2 | D12: 4.0 | E12: 15% | F12: 15% | G12: 10% | H12: 10% | I12: 15% | J12: 30% | K12: 5% | L12: =SUM(tblZajęcia[[#This Row],[Prace domowe]:[Inne]]) -> 100%
C13: Zaawansowane programowanie w języku Java | D13: 5.0 | E13: 15% | F13: 15% | G13: 10% | H13: 10% | I13: 20% | J13: 30% | L13: =SUM(tblZajęcia[[#This Row],[Prace domowe]:[Inne]]) -> 100%
C14: Hiszpański | D14: 3.0 | E14: 10% | F14: 15% | G14: 17% | H14: 13% | I14: 20% | J14: 20% | K14: 5% | L14: =SUM(tblZajęcia[[#This Row],[Prace domowe]:[Inne]]) -> 100%
C15: Wypracowania | D15: 2.0 | E15: 15% | F15: 15% | G15: 12% | H15: 15% | I15: 15% | J15: 25% | K15: 3% | L15: =SUM(tblZajęcia[[#This Row],[Prace domowe]:[Inne]]) -> 100%

Sheet Obliczenia (hidden)
B1: Obliczenia
C2: Ten arkusz zawiera obliczenia ocen i średniej ocen. Powinien być ukryty. Wszelkie modyfikacje tego arkusza mogą spowodować błędy.
C4: Lista bieżących zajęć | D4: Punkty (wartość maksymalna: 1) | AC4: Obliczenia ocen
C5: Zajęcia | D5: 1 | E5: 2 | F5: 3 | G5: 4 | H5: 5 | I5: 6 | J5: 7 | K5: 8 | L5: 9 | M5: 10 | N5: 11 | O5: 12 | P5: 13 | Q5: 14 | R5: 15 | S5: 16 | T5: 17 | U5: 18 | V5: 19 | W5: 20 | X5: 21 | Y5: 22 | Z5: 23 | AA5: 24 | AB5: 25 | AC5: =tblZajęcia[[#Headers],[Prace domowe]] -> Prace domowe | AD5: =tblZajęcia[[#Headers],[Esej]] -> Esej | AE5: =tblZajęcia[[#Headers],[Test]] -> Test | AF5: =tblZajęcia[[#Headers],[Projekt]] -> Projekt | AG5: =tblZajęcia[[#Headers],[Egzamin śródsemestralny]] -> Egzamin śródsemestralny | AH5: =tblZajęcia[[#Headers],[Egzamin końcowy]] -> Egzamin końcowy | AI5: =tblZajęcia[[#Headers],[Inne]] -> Inne | AJ5: Suma | AK5: Łączna liczba punktów do zdobycia | AL5: Suma (procent) | AM5: Ocena punktowa | AN5: Stopień
C6: =IF(Ustawienia!C9="","",Ustawienia!C9) -> Współczesny język francuski | D6: =IFERROR(INDEX(tbl_Oceny_z_zajęć[],MATCH($C6:$C30&D$5:AB$5,Obliczenia!$C$33:$C$657,0),4),"") -> 80% | E6: 90% | F6: 80% | AC6: =IFERROR(AVERAGEIFS(tbl_Oceny_z_zajęć[Punkty],tbl_Oceny_z_zajęć[Zajęcia],Obliczenia!$C6,tbl_Oceny_z_zajęć[Typ],Obliczenia!AC$5)*Ustawienia!E9,"") -> 0.08333333333 | AD6: =IFERROR(AVERAGEIFS(tbl_Oceny_z_zajęć[Punkty],tbl_Oceny_z_zajęć[Zajęcia],Obliczenia!$C6,tbl_Oceny_z_zajęć[Typ],Obliczenia!AD$5)*Ustawienia!F9,"") ->  | AE6: =IFERROR(AVERAGEIFS(tbl_Oceny_z_zajęć[Punkty],tbl_Oceny_z_zajęć[Zajęcia],Obliczenia!$C6,tbl_Oceny_z_zajęć[Typ],Obliczenia!AE$5)*Ustawienia!G9,"") ->  | AF6: =IFERROR(AVERAGEIFS(tbl_Oceny_z_zajęć[Punkty],tbl_Oceny_z_zajęć[Zajęcia],Obliczenia!$C6,tbl_Oceny_z_zajęć[Typ],Obliczenia!AF$5)*Ustawienia!H9,"") ->  | AG6: =IFERROR(AVERAGEIFS(tbl_Oceny_z_zajęć[Punkty],tbl_Oceny_z_zajęć[Zajęcia],Obliczenia!$C6,tbl_Oceny_z_zajęć[Typ],Obliczenia!AG$5)*Ustawienia!I9,"") ->  | AH6: =IFERROR(AVERAGEIFS(tbl_Oceny_z_zajęć[Punkty],tbl_Oceny_z_zajęć[Zajęcia],Obliczenia!$C6,tbl_Oceny_z_zajęć[Typ],Obliczenia!AH$5)*Ustawienia!J9,"") ->  | AI6: =IFERROR(AVERAGEIFS(tbl_Oceny_z_zajęć[Punkty],tbl_Oceny_z_zajęć[Zajęcia],Obliczenia!$C6,tbl_Oceny_z_zajęć[Typ],Obliczenia!AI$5)*Ustawienia!K9,"") ->  | AJ6: =SUM(AC6:AI6) -> 0.08333333333 | AK6: =SUMIFS(Ustawienia!E9:K9,Obliczenia!AC6:AI6,">0") -> 0.1 | AL6: =IFERROR(AJ6/AK6,"") -> 83% | AM6: =IFERROR(HLOOKUP(AL6,lst_Przeliczenie_na_średnią_ocen,3),"") -> 3 | AN6: =IFERROR(HLOOKUP(AL6,lst_Przeliczenie_na_średnią_ocen,2),"") -> B
C7: =IF(Ustawienia!C10="","",Ustawienia!C10) -> Fizyka teoretyczna | D7: 95% | AC7: =IFERROR(AVERAGEIFS(tbl_Oceny_z_zajęć[Punkty],tbl_Oceny_z_zajęć[Zajęcia],Obliczenia!$C7,tbl_Oceny_z_zajęć[Typ],Obliczenia!AC$5)*Ustawienia!E10,"") -> 0.1425 | AD7: =IFERROR(AVERAGEIFS(tbl_Oceny_z_zajęć[Punkty],tbl_Oceny_z_zajęć[Zajęcia],Obliczenia!$C7,tbl_Oceny_z_zajęć[Typ],Obliczenia!AD$5)*Ustawienia!F10,"") ->  | AE7: =IFERROR(AVERAGEIFS(tbl_Oceny_z_zajęć[Punkty],tbl_Oceny_z_zajęć[Zajęcia],Obliczenia!$C7,tbl_Oceny_z_zajęć[Typ],Obliczenia!AE$5)*Ustawienia!G10,"") ->  | AF7: =IFERROR(AVERAGEIFS(tbl_Oceny_z_zajęć[Punkty],tbl_Oceny_z_zajęć[Zajęcia],Obliczenia!$C7,tbl_Oceny_z_zajęć[Typ],Obliczenia!AF$5)*Ustawienia!H10,"") ->  | AG7: =IFERROR(AVERAGEIFS(tbl_Oceny_z_zajęć[Punkty],tbl_Oceny_z_zajęć[Zajęcia],Obliczenia!$C7,tbl_Oceny_z_zajęć[Typ],Obliczenia!AG$5)*Ustawienia!I10,"") ->  | AH7: =IFERROR(AVERAGEIFS(tbl_Oceny_z_zajęć[Punkty],tbl_Oceny_z_zajęć[Zajęcia],Obliczenia!$C7,tbl_Oceny_z_zajęć[Typ],Obliczenia!AH$5)*Ustawienia!J10,"") ->  | AI7: =IFERROR(AVERAGEIFS(tbl_Oceny_z_zajęć[Punkty],tbl_Oceny_z_zajęć[Zajęcia],Obliczenia!$C7,tbl_Oceny_z_zajęć[Typ],Obliczenia!AI$5)*Ustawienia!K10,"") ->  | AJ7: =SUM(AC7:AI7) -> 0.1425 | AK7: =SUMIFS(Ustawienia!E10:K10,Obliczenia!AC7:AI7,">0") -> 0.15 | AL7: =IFERROR(AJ7/AK7,"") -> 95% | AM7: 4 | AN7: A
C8: =IF(Ustawienia!C11="","",Ustawienia!C11) -> Matematyka 1 | D8: 80% | E8: 80% | AC8: =IFERROR(AVERAGEIFS(tbl_Oceny_z_zajęć[Punkty],tbl_Oceny_z_zajęć[Zajęcia],Obliczenia!$C8,tbl_Oceny_z_zajęć[Typ],Obliczenia!AC$5)*Ustawienia!E11,"") -> 0.08 | AD8: =IFERROR(AVERAGEIFS(tbl_Oceny_z_zajęć[Punkty],tbl_Oceny_z_zajęć[Zajęcia],Obliczenia!$C8,tbl_Oceny_z_zajęć[Typ],Obliczenia!AD$5)*Ustawienia!F11,"") ->  | AE8: =IFERROR(AVERAGEIFS(tbl_Oceny_z_zajęć[Punkty],tbl_Oceny_z_zajęć[Zajęcia],Obliczenia!$C8,tbl_Oceny_z_zajęć[Typ],Obliczenia!AE$5)*Ustawienia!G11,"") ->  | AF8: =IFERROR(AVERAGEIFS(tbl_Oceny_z_zajęć[Punkty],tbl_Oceny_z_zajęć[Zajęcia],Obliczenia!$C8,tbl_Oceny_z_zajęć[Typ],Obliczenia!AF$5)*Ustawienia!H11,"") ->  | AG8: =IFERROR(AVERAGEIFS(tbl_Oceny_z_zajęć[Punkty],tbl_Oceny_z_zajęć[Zajęcia],Obliczenia!$C8,tbl_Oceny_z_zajęć[Typ],Obliczenia!AG$5)*Ustawienia!I11,"") ->  | AH8: =IFERROR(AVERAGEIFS(tbl_Oceny_z_zajęć[Punkty],tbl_Oceny_z_zajęć[Zajęcia],Obliczenia!$C8,tbl_Oceny_z_zajęć[Typ],Obliczenia!AH$5)*Ustawienia!J11,"") ->  | AI8: =IFERROR(AVERAGEIFS(tbl_Oceny_z_zajęć[Punkty],tbl_Oceny_z_zajęć[Zajęcia],Obliczenia!$C8,tbl_Oceny_z_zajęć[Typ],Obliczenia!AI$5)*Ustawienia!K11,"") ->  | AJ8: 0.08 | AK8: =SUMIFS(Ustawienia!E11:K11,Obliczenia!AC8:AI8,">0") -> 0.1 | AL8: 80% | AM8: 2.67 | AN8: B-
C9: =IF(Ustawienia!C12="","",Ustawienia!C12) -> Matematyka 2 | D9: 85% | E9: 95% | AC9: =IFERROR(AVERAGEIFS(tbl_Oceny_z_zajęć[Punkty],tbl_Oceny_z_zajęć[Zajęcia],Obliczenia!$C9,tbl_Oceny_z_zajęć[Typ],Obliczenia!AC$5)*Ustawienia!E12,"") -> 0.1275 | AD9: =IFERROR(AVERAGEIFS(tbl_Oceny_z_zajęć[Punkty],tbl_Oceny_z_zajęć[Zajęcia],Obliczenia!$C9,tbl_Oceny_z_zajęć[Typ],Obliczenia!AD$5)*Ustawienia!F12,"") ->  | AE9: =IFERROR(AVERAGEIFS(tbl_Oceny_z_zajęć[Punkty],tbl_Oceny_z_zajęć[Zajęcia],Obliczenia!$C9,tbl_Oceny_z_zajęć[Typ],Obliczenia!AE$5)*Ustawienia!G12,"") -> 0.095 | AF9: =IFERROR(AVERAGEIFS(tbl_Oceny_z_zajęć[Punkty],tbl_Oceny_z_zajęć[Zajęcia],Obliczenia!$C9,tbl_Oceny_z_zajęć[Typ],Obliczenia!AF$5)*Ustawienia!H12,"") ->  | AG9: =IFERROR(AVERAGEIFS(tbl_Oceny_z_zajęć[Punkty],tbl_Oceny_z_zajęć[Zajęcia],Obliczenia!$C9,tbl_Oceny_z_zajęć[Typ],Obliczenia!AG$5)*Ustawienia!I12,"") ->  | AH9: =IFERROR(AVERAGEIFS(tbl_Oceny_z_zajęć[Punkty],tbl_Oceny_z_zajęć[Zajęcia],Obliczenia!$C9,tbl_Oceny_z_zajęć[Typ],Obliczenia!AH$5)*Ustawienia!J12,"") ->  | AI9: =IFERROR(AVERAGEIFS(tbl_Oceny_z_zajęć[Punkty],tbl_Oceny_z_zajęć[Zajęcia],Obliczenia!$C9,tbl_Oceny_z_zajęć[Typ],Obliczenia!AI$5)*Ustawienia!K12,"") ->  | AJ9: 0.2225 | AK9: =SUMIFS(Ustawienia!E12:K12,Obliczenia!AC9:AI9,">0") -> 0.25 | AL9: 89% | AM9: 3.33 | AN9: B+
C10: =IF(Ustawienia!C13="","",Ustawienia!C13) -> Zaawansowane programowanie w języku Java | D10: 75% | AC10: =IFERROR(AVERAGEIFS(tbl_Oceny_z_zajęć[Punkty],tbl_Oceny_z_zajęć[Zajęcia],Obliczenia!$C10,tbl_Oceny_z_zajęć[Typ],Obliczenia!AC$5)*Ustawienia!E13,"") ->  | AD10: =IFERROR(AVERAGEIFS(tbl_Oceny_z_zajęć[Punkty],tbl_Oceny_z_zajęć[Zajęcia],Obliczenia!$C10,tbl_Oceny_z_zajęć[Typ],Obliczenia!AD$5)*Ustawienia!F13,"") ->  | AE10: =IFERROR(AVERAGEIFS(tbl_Oceny_z_zajęć[Punkty],tbl_Oceny_z_zajęć[Zajęcia],Obliczenia!$C10,tbl_Oceny_z_zajęć[Typ],Obliczenia!AE$5)*Ustawienia!G13,"") ->  | AF10: =IFERROR(AVERAGEIFS(tbl_Oceny_z_zajęć[Punkty],tbl_Oceny_z_zajęć[Zajęcia],Obliczenia!$C10,tbl_Oceny_z_zajęć[Typ],Obliczenia!AF$5)*Ustawienia!H13,"") ->  | AG10: =IFERROR(AVERAGEIFS(tbl_Oceny_z_zajęć[Punkty],tbl_Oceny_z_zajęć[Zajęcia],Obliczenia!$C10,tbl_Oceny_z_zajęć[Typ],Obliczenia!AG$5)*Ustawienia!I13,"") -> 0.15 | AH10: =IFERROR(AVERAGEIFS(tbl_Oceny_z_zajęć[Punkty],tbl_Oceny_z_zajęć[Zajęcia],Obliczenia!$C10,tbl_Oceny_z_zajęć[Typ],Obliczenia!AH$5)*Ustawienia!J13,"") ->  | AI10: =IFERROR(AVERAGEIFS(tbl_Oceny_z_zajęć[Punkty],tbl_Oceny_z_zajęć[Zajęcia],Obliczenia!$C10,tbl_Oceny_z_zajęć[Typ],Obliczenia!AI$5)*Ustawienia!K13,"") ->  | AJ10: 0.15 | AK10: =SUMIFS(Ustawienia!E13:K13,Obliczenia!AC10:AI10,">0") -> 0.2 | AL10: 75% | AM10: 2 | AN10: C
C11: =IF(Ustawienia!C14="","",Ustawienia!C14) -> Hiszpański | D11: 50% | AC11: =IFERROR(AVERAGEIFS(tbl_Oceny_z_zajęć[Punkty],tbl_Oceny_z_zajęć[Zajęcia],Obliczenia!$C11,tbl_Oceny_z_zajęć[Typ],Obliczenia!AC$5)*Ustawienia!E14,"") -> 0.05 | AD11: =IFERROR(AVERAGEIFS(tbl_Oceny_z_zajęć[Punkty],tbl_Oceny_z_zajęć[Zajęcia],Obliczenia!$C11,tbl_Oceny_z_zajęć[Typ],Obliczenia!AD$5)*Ustawienia!F14,"") ->  | AE11: =IFERROR(AVERAGEIFS(tbl_Oceny_z_zajęć[Punkty],tbl_Oceny_z_zajęć[Zajęcia],Obliczenia!$C11,tbl_Oceny_z_zajęć[Typ],Obliczenia!AE$5)*Ustawienia!G14,"") ->  | AF11: =IFERROR(AVERAGEIFS(tbl_Oceny_z_zajęć[Punkty],tbl_Oceny_z_zajęć[Zajęcia],Obliczenia!$C11,tbl_Oceny_z_zajęć[Typ],Obliczenia!AF$5)*Ustawienia!H14,"") ->  | AG11: =IFERROR(AVERAGEIFS(tbl_Oceny_z_zajęć[Punkty],tbl_Oceny_z_zajęć[Zajęcia],Obliczenia!$C11,tbl_Oceny_z_zajęć[Typ],Obliczenia!AG$5)*Ustawienia!I14,"") ->  | AH11: =IFERROR(AVERAGEIFS(tbl_Oceny_z_zajęć[Punkty],tbl_Oceny_z_zajęć[Zajęcia],Obliczenia!$C11,tbl_Oceny_z_zajęć[Typ],Obliczenia!AH$5)*Ustawienia!J14,"") ->  | AI11: =IFERROR(AVERAGEIFS(tbl_Oceny_z_zajęć[Punkty],tbl_Oceny_z_zajęć[Zajęcia],Obliczenia!$C11,tbl_Oceny_z_zajęć[Typ],Obliczenia!AI$5)*Ustawienia!K14,"") ->  | AJ11: 0.05 | AK11: =SUMIFS(Ustawienia!E14:K14,Obliczenia!AC11:AI11,">0") -> 0.1 | AL11: 50% | AM11: 0 | AN11: F
C12: =IF(Ustawienia!C15="","",Ustawienia!C15) -> Wypracowania | D12: 95% | AC12: =IFERROR(AVERAGEIFS(tbl_Oceny_z_zajęć[Punkty],tbl_Oceny_z_zajęć[Zajęcia],Obliczenia!$C12,tbl_Oceny_z_zajęć[Typ],Obliczenia!AC$5)*Ustawienia!E15,"") ->  | AD12: =IFERROR(AVERAGEIFS(tbl_Oceny_z_zajęć[Punkty],tbl_Oceny_z_zajęć[Zajęcia],Obliczenia!$C12,tbl_Oceny_z_zajęć[Typ],Obliczenia!AD$5)*Ustawienia!F15,"") -> 0.1425 | AE12: =IFERROR(AVERAGEIFS(tbl_Oceny_z_zajęć[Punkty],tbl_Oceny_z_zajęć[Zajęcia],Obliczenia!$C12,tbl_Oceny_z_zajęć[Typ],Obliczenia!AE$5)*Ustawienia!G15,"") ->  | AF12: =IFERROR(AVERAGEIFS(tbl_Oceny_z_zajęć[Punkty],tbl_Oceny_z_zajęć[Zajęcia],Obliczenia!$C12,tbl_Oceny_z_zajęć[Typ],Obliczenia!AF$5)*Ustawienia!H15,"") ->  | AG12: =IFERROR(AVERAGEIFS(tbl_Oceny_z_zajęć[Punkty],tbl_Oceny_z_zajęć[Zajęcia],Obliczenia!$C12,tbl_Oceny_z_zajęć[Typ],Obliczenia!AG$5)*Ustawienia!I15,"") ->  | AH12: =IFERROR(AVERAGEIFS(tbl_Oceny_z_zajęć[Punkty],tbl_Oceny_z_zajęć[Zajęcia],Obliczenia!$C12,tbl_Oceny_z_zajęć[Typ],Obliczenia!AH$5)*Ustawienia!J15,"") ->  | AI12: =IFERROR(AVERAGEIFS(tbl_Oceny_z_zajęć[Punkty],tbl_Oceny_z_zajęć[Zajęcia],Obliczenia!$C12,tbl_Oceny_z_zajęć[Typ],Obliczenia!AI$5)*Ustawienia!K15,"") ->  | AJ12: 0.1425 | AK12: =SUMIFS(Ustawienia!E15:K15,Obliczenia!AC12:AI12,">0") -> 0.15 | AL12: 95% | AM12: 4 | AN12: A
C13: =IF(Ustawienia!C16="","",Ustawienia!C16) ->  | AC13: =IFERROR(AVERAGEIFS(tbl_Oceny_z_zajęć[Punkty],tbl_Oceny_z_zajęć[Zajęcia],Obliczenia!$C13,tbl_Oceny_z_zajęć[Typ],Obliczenia!AC$5)*Ustawienia!E16,"") ->  | AD13: =IFERROR(AVERAGEIFS(tbl_Oceny_z_zajęć[Punkty],tbl_Oceny_z_zajęć[Zajęcia],Obliczenia!$C13,tbl_Oceny_z_zajęć[Typ],Obliczenia!AD$5)*Ustawienia!F16,"") ->  | AE13: =IFERROR(AVERAGEIFS(tbl_Oceny_z_zajęć[Punkty],tbl_Oceny_z_zajęć[Zajęcia],Obliczenia!$C13,tbl_Oceny_z_zajęć[Typ],Obliczenia!AE$5)*Ustawienia!G16,"") ->  | AF13: =IFERROR(AVERAGEIFS(tbl_Oceny_z_zajęć[Punkty],tbl_Oceny_z_zajęć[Zajęcia],Obliczenia!$C13,tbl_Oceny_z_zajęć[Typ],Obliczenia!AF$5)*Ustawienia!H16,"") ->  | AG13: =IFERROR(AVERAGEIFS(tbl_Oceny_z_zajęć[Punkty],tbl_Oceny_z_zajęć[Zajęcia],Obliczenia!$C13,tbl_Oceny_z_zajęć[Typ],Obliczenia!AG$5)*Ustawienia!I16,"") ->  | AH13: =IFERROR(AVERAGEIFS(tbl_Oceny_z_zajęć[Punkty],tbl_Oceny_z_zajęć[Zajęcia],Obliczenia!$C13,tbl_Oceny_z_zajęć[Typ],Obliczenia!AH$5)*Ustawienia!J16,"") ->  | AI13: =IFERROR(AVERAGEIFS(tbl_Oceny_z_zajęć[Punkty],tbl_Oceny_z_zajęć[Zajęcia],Obliczenia!$C13,tbl_Oceny_z_zajęć[Typ],Obliczenia!AI$5)*Ustawienia!K16,"") ->  | AJ13: =SUM(AC13:AI13) -> 0 | AK13: =SUMIFS(Ustawienia!E16:K16,Obliczenia!AC13:AI13,">0") -> 0 | AL13: =IFERROR(AJ13/AK13,"") -> 
C14: =IF(Ustawienia!C17="","",Ustawienia!C17) ->  | AC14: =IFERROR(AVERAGEIFS(tbl_Oceny_z_zajęć[Punkty],tbl_Oceny_z_zajęć[Zajęcia],Obliczenia!$C14,tbl_Oceny_z_zajęć[Typ],Obliczenia!AC$5)*Ustawienia!E17,"") ->  | AD14: =IFERROR(AVERAGEIFS(tbl_Oceny_z_zajęć[Punkty],tbl_Oceny_z_zajęć[Zajęcia],Obliczenia!$C14,tbl_Oceny_z_zajęć[Typ],Obliczenia!AD$5)*Ustawienia!F17,"") ->  | AE14: =IFERROR(AVERAGEIFS(tbl_Oceny_z_zajęć[Punkty],tbl_Oceny_z_zajęć[Zajęcia],Obliczenia!$C14,tbl_Oceny_z_zajęć[Typ],Obliczenia!AE$5)*Ustawienia!G17,"") ->  | AF14: =IFERROR(AVERAGEIFS(tbl_Oceny_z_zajęć[Punkty],tbl_Oceny_z_zajęć[Zajęcia],Obliczenia!$C14,tbl_Oceny_z_zajęć[Typ],Obliczenia!AF$5)*Ustawienia!H17,"") ->  | AG14: =IFERROR(AVERAGEIFS(tbl_Oceny_z_zajęć[Punkty],tbl_Oceny_z_zajęć[Zajęcia],Obliczenia!$C14,tbl_Oceny_z_zajęć[Typ],Obliczenia!AG$5)*Ustawienia!I17,"") ->  | AH14: =IFERROR(AVERAGEIFS(tbl_Oceny_z_zajęć[Punkty],tbl_Oceny_z_zajęć[Zajęcia],Obliczenia!$C14,tbl_Oceny_z_zajęć[Typ],Obliczenia!AH$5)*Ustawienia!J17,"") ->  | AI14: =IFERROR(AVERAGEIFS(tbl_Oceny_z_zajęć[Punkty],tbl_Oceny_z_zajęć[Zajęcia],Obliczenia!$C14,tbl_Oceny_z_zajęć[Typ],Obliczenia!AI$5)*Ustawienia!K17,"") ->  | AJ14: 0 | AK14: =SUMIFS(Ustawienia!E17:K17,Obliczenia!AC14:AI14,">0") -> 0
C15: =IF(Ustawienia!C18="","",Ustawienia!C18) ->  | AC15: =IFERROR(AVERAGEIFS(tbl_Oceny_z_zajęć[Punkty],tbl_Oceny_z_zajęć[Zajęcia],Obliczenia!$C15,tbl_Oceny_z_zajęć[Typ],Obliczenia!AC$5)*Ustawienia!E18,"") ->  | AD15: =IFERROR(AVERAGEIFS(tbl_Oceny_z_zajęć[Punkty],tbl_Oceny_z_zajęć[Zajęcia],Obliczenia!$C15,tbl_Oceny_z_zajęć[Typ],Obliczenia!AD$5)*Ustawienia!F18,"") ->  | AE15: =IFERROR(AVERAGEIFS(tbl_Oceny_z_zajęć[Punkty],tbl_Oceny_z_zajęć[Zajęcia],Obliczenia!$C15,tbl_Oceny_z_zajęć[Typ],Obliczenia!AE$5)*Ustawienia!G18,"") ->  | AF15: =IFERROR(AVERAGEIFS(tbl_Oceny_z_zajęć[Punkty],tbl_Oceny_z_zajęć[Zajęcia],Obliczenia!$C15,tbl_Oceny_z_zajęć[Typ],Obliczenia!AF$5)*Ustawienia!H18,"") ->  | AG15: =IFERROR(AVERAGEIFS(tbl_Oceny_z_zajęć[Punkty],tbl_Oceny_z_zajęć[Zajęcia],Obliczenia!$C15,tbl_Oceny_z_zajęć[Typ],Obliczenia!AG$5)*Ustawienia!I18,"") ->  | AH15: =IFERROR(AVERAGEIFS(tbl_Oceny_z_zajęć[Punkty],tbl_Oceny_z_zajęć[Zajęcia],Obliczenia!$C15,tbl_Oceny_z_zajęć[Typ],Obliczenia!AH$5)*Ustawienia!J18,"") ->  | AI15: =IFERROR(AVERAGEIFS(tbl_Oceny_z_zajęć[Punkty],tbl_Oceny_z_zajęć[Zajęcia],Obliczenia!$C15,tbl_Oceny_z_zajęć[Typ],Obliczenia!AI$5)*Ustawienia!K18,"") ->  | AJ15: 0 | AK15: =SUMIFS(Ustawienia!E18:K18,Obliczenia!AC15:AI15,">0") -> 0
C16: =IF(Ustawienia!C19="","",Ustawienia!C19) ->  | AC16: =IFERROR(AVERAGEIFS(tbl_Oceny_z_zajęć[Punkty],tbl_Oceny_z_zajęć[Zajęcia],Obliczenia!$C16,tbl_Oceny_z_zajęć[Typ],Obliczenia!AC$5)*Ustawienia!E19,"") ->  | AD16: =IFERROR(AVERAGEIFS(tbl_Oceny_z_zajęć[Punkty],tbl_Oceny_z_zajęć[Zajęcia],Obliczenia!$C16,tbl_Oceny_z_zajęć[Typ],Obliczenia!AD$5)*Ustawienia!F19,"") ->  | AE16: =IFERROR(AVERAGEIFS(tbl_Oceny_z_zajęć[Punkty],tbl_Oceny_z_zajęć[Zajęcia],Obliczenia!$C16,tbl_Oceny_z_zajęć[Typ],Obliczenia!AE$5)*Ustawienia!G19,"") ->  | AF16: =IFERROR(AVERAGEIFS(tbl_Oceny_z_zajęć[Punkty],tbl_Oceny_z_zajęć[Zajęcia],Obliczenia!$C16,tbl_Oceny_z_zajęć[Typ],Obliczenia!AF$5)*Ustawienia!H19,"") ->  | AG16: =IFERROR(AVERAGEIFS(tbl_Oceny_z_zajęć[Punkty],tbl_Oceny_z_zajęć[Zajęcia],Obliczenia!$C16,tbl_Oceny_z_zajęć[Typ],Obliczenia!AG$5)*Ustawienia!I19,"") ->  | AH16: =IFERROR(AVERAGEIFS(tbl_Oceny_z_zajęć[Punkty],tbl_Oceny_z_zajęć[Zajęcia],Obliczenia!$C16,tbl_Oceny_z_zajęć[Typ],Obliczenia!AH$5)*Ustawienia!J19,"") ->  | AI16: =IFERROR(AVERAGEIFS(tbl_Oceny_z_zajęć[Punkty],tbl_Oceny_z_zajęć[Zajęcia],Obliczenia!$C16,tbl_Oceny_z_zajęć[Typ],Obliczenia!AI$5)*Ustawienia!K19,"") ->  | AJ16: 0 | AK16: =SUMIFS(Ustawienia!E19:K19,Obliczenia!AC16:AI16,">0") -> 0
C17: =IF(Ustawienia!C20="","",Ustawienia!C20) ->  | AC17: =IFERROR(AVERAGEIFS(tbl_Oceny_z_zajęć[Punkty],tbl_Oceny_z_zajęć[Zajęcia],Obliczenia!$C17,tbl_Oceny_z_zajęć[Typ],Obliczenia!AC$5)*Ustawienia!E20,"") ->  | AD17: =IFERROR(AVERAGEIFS(tbl_Oceny_z_zajęć[Punkty],tbl_Oceny_z_zajęć[Zajęcia],Obliczenia!$C17,tbl_Oceny_z_zajęć[Typ],Obliczenia!AD$5)*Ustawienia!F20,"") ->  | AE17: =IFERROR(AVERAGEIFS(tbl_Oceny_z_zajęć[Punkty],tbl_Oceny_z_zajęć[Zajęcia],Obliczenia!$C17,tbl_Oceny_z_zajęć[Typ],Obliczenia!AE$5)*Ustawienia!G20,"") ->  | AF17: =IFERROR(AVERAGEIFS(tbl_Oceny_z_zajęć[Punkty],tbl_Oceny_z_zajęć[Zajęcia],Obliczenia!$C17,tbl_Oceny_z_zajęć[Typ],Obliczenia!AF$5)*Ustawienia!H20,"") ->  | AG17: =IFERROR(AVERAGEIFS(tbl_Oceny_z_zajęć[Punkty],tbl_Oceny_z_zajęć[Zajęcia],Obliczenia!$C17,tbl_Oceny_z_zajęć[Typ],Obliczenia!AG$5)*Ustawienia!I20,"") ->  | AH17: =IFERROR(AVERAGEIFS(tbl_Oceny_z_zajęć[Punkty],tbl_Oceny_z_zajęć[Zajęcia],Obliczenia!$C17,tbl_Oceny_z_zajęć[Typ],Obliczenia!AH$5)*Ustawienia!J20,"") ->  | AI17: =IFERROR(AVERAGEIFS(tbl_Oceny_z_zajęć[Punkty],tbl_Oceny_z_zajęć[Zajęcia],Obliczenia!$C17,tbl_Oceny_z_zajęć[Typ],Obliczenia!AI$5)*Ustawienia!K20,"") ->  | AJ17: 0 | AK17: =SUMIFS(Ustawienia!E20:K20,Obliczenia!AC17:AI17,">0") -> 0
C18: =IF(Ustawienia!C21="","",Ustawienia!C21) ->  | AC18: =IFERROR(AVERAGEIFS(tbl_Oceny_z_zajęć[Punkty],tbl_Oceny_z_zajęć[Zajęcia],Obliczenia!$C18,tbl_Oceny_z_zajęć[Typ],Obliczenia!AC$5)*Ustawienia!E21,"") ->  | AD18: =IFERROR(AVERAGEIFS(tbl_Oceny_z_zajęć[Punkty],tbl_Oceny_z_zajęć[Zajęcia],Obliczenia!$C18,tbl_Oceny_z_zajęć[Typ],Obliczenia!AD$5)*Ustawienia!F21,"") ->  | AE18: =IFERROR(AVERAGEIFS(tbl_Oceny_z_zajęć[Punkty],tbl_Oceny_z_zajęć[Zajęcia],Obliczenia!$C18,tbl_Oceny_z_zajęć[Typ],Obliczenia!AE$5)*Ustawienia!G21,"") ->  | AF18: =IFERROR(AVERAGEIFS(tbl_Oceny_z_zajęć[Punkty],tbl_Oceny_z_zajęć[Zajęcia],Obliczenia!$C18,tbl_Oceny_z_zajęć[Typ],Obliczenia!AF$5)*Ustawienia!H21,"") ->  | AG18: =IFERROR(AVERAGEIFS(tbl_Oceny_z_zajęć[Punkty],tbl_Oceny_z_zajęć[Zajęcia],Obliczenia!$C18,tbl_Oceny_z_zajęć[Typ],Obliczenia!AG$5)*Ustawienia!I21,"") ->  | AH18: =IFERROR(AVERAGEIFS(tbl_Oceny_z_zajęć[Punkty],tbl_Oceny_z_zajęć[Zajęcia],Obliczenia!$C18,tbl_Oceny_z_zajęć[Typ],Obliczenia!AH$5)*Ustawienia!J21,"") ->  | AI18: =IFERROR(AVERAGEIFS(tbl_Oceny_z_zajęć[Punkty],tbl_Oceny_z_zajęć[Zajęcia],Obliczenia!$C18,tbl_Oceny_z_zajęć[Typ],Obliczenia!AI$5)*Ustawienia!K21,"") ->  | AJ18: 0 | AK18: =SUMIFS(Ustawienia!E21:K21,Obliczenia!AC18:AI18,">0") -> 0
C19: =IF(Ustawienia!C22="","",Ustawienia!C22) ->  | AC19: =IFERROR(AVERAGEIFS(tbl_Oceny_z_zajęć[Punkty],tbl_Oceny_z_zajęć[Zajęcia],Obliczenia!$C19,tbl_Oceny_z_zajęć[Typ],Obliczenia!AC$5)*Ustawienia!E22,"") ->  | AD19: =IFERROR(AVERAGEIFS(tbl_Oceny_z_zajęć[Punkty],tbl_Oceny_z_zajęć[Zajęcia],Obliczenia!$C19,tbl_Oceny_z_zajęć[Typ],Obliczenia!AD$5)*Ustawienia!F22,"") ->  | AE19: =IFERROR(AVERAGEIFS(tbl_Oceny_z_zajęć[Punkty],tbl_Oceny_z_zajęć[Zajęcia],Obliczenia!$C19,tbl_Oceny_z_zajęć[Typ],Obliczenia!AE$5)*Ustawienia!G22,"") ->  | AF19: =IFERROR(AVERAGEIFS(tbl_Oceny_z_zajęć[Punkty],tbl_Oceny_z_zajęć[Zajęcia],Obliczenia!$C19,tbl_Oceny_z_zajęć[Typ],Obliczenia!AF$5)*Ustawienia!H22,"") ->  | AG19: =IFERROR(AVERAGEIFS(tbl_Oceny_z_zajęć[Punkty],tbl_Oceny_z_zajęć[Zajęcia],Obliczenia!$C19,tbl_Oceny_z_zajęć[Typ],Obliczenia!AG$5)*Ustawienia!I22,"") ->  | AH19: =IFERROR(AVERAGEIFS(tbl_Oceny_z_zajęć[Punkty],tbl_Oceny_z_zajęć[Zajęcia],Obliczenia!$C19,tbl_Oceny_z_zajęć[Typ],Obliczenia!AH$5)*Ustawienia!J22,"") ->  | AI19: =IFERROR(AVERAGEIFS(tbl_Oceny_z_zajęć[Punkty],tbl_Oceny_z_zajęć[Zajęcia],Obliczenia!$C19,tbl_Oceny_z_zajęć[Typ],Obliczenia!AI$5)*Ustawienia!K22,"") ->  | AJ19: 0 | AK19: =SUMIFS(Ustawienia!E22:K22,Obliczenia!AC19:AI19,">0") -> 0
C20: =IF(Ustawienia!C23="","",Ustawienia!C23) ->  | AC20: =IFERROR(AVERAGEIFS(tbl_Oceny_z_zajęć[Punkty],tbl_Oceny_z_zajęć[Zajęcia],Obliczenia!$C20,tbl_Oceny_z_zajęć[Typ],Obliczenia!AC$5)*Ustawienia!E23,"") ->  | AD20: =IFERROR(AVERAGEIFS(tbl_Oceny_z_zajęć[Punkty],tbl_Oceny_z_zajęć[Zajęcia],Obliczenia!$C20,tbl_Oceny_z_zajęć[Typ],Obliczenia!AD$5)*Ustawienia!F23,"") ->  | AE20: =IFERROR(AVERAGEIFS(tbl_Oceny_z_zajęć[Punkty],tbl_Oceny_z_zajęć[Zajęcia],Obliczenia!$C20,tbl_Oceny_z_zajęć[Typ],Obliczenia!AE$5)*Ustawienia!G23,"") ->  | AF20: =IFERROR(AVERAGEIFS(tbl_Oceny_z_zajęć[Punkty],tbl_Oceny_z_zajęć[Zajęcia],Obliczenia!$C20,tbl_Oceny_z_zajęć[Typ],Obliczenia!AF$5)*Ustawienia!H23,"") ->  | AG20: =IFERROR(AVERAGEIFS(tbl_Oceny_z_zajęć[Punkty],tbl_Oceny_z_zajęć[Zajęcia],Obliczenia!$C20,tbl_Oceny_z_zajęć[Typ],Obliczenia!AG$5)*Ustawienia!I23,"") ->  | AH20: =IFERROR(AVERAGEIFS(tbl_Oceny_z_zajęć[Punkty],tbl_Oceny_z_zajęć[Zajęcia],Obliczenia!$C20,tbl_Oceny_z_zajęć[Typ],Obliczenia!AH$5)*Ustawienia!J23,"") ->  | AI20: =IFERROR(AVERAGEIFS(tbl_Oceny_z_zajęć[Punkty],tbl_Oceny_z_zajęć[Zajęcia],Obliczenia!$C20,tbl_Oceny_z_zajęć[Typ],Obliczenia!AI$5)*Ustawienia!K23,"") ->  | AJ20: 0 | AK20: =SUMIFS(Ustawienia!E23:K23,Obliczenia!AC20:AI20,">0") -> 0
C21: =IF(Ustawienia!C24="","",Ustawienia!C24) ->  | AC21: =IFERROR(AVERAGEIFS(tbl_Oceny_z_zajęć[Punkty],tbl_Oceny_z_zajęć[Zajęcia],Obliczenia!$C21,tbl_Oceny_z_zajęć[Typ],Obliczenia!AC$5)*Ustawienia!E24,"") ->  | AD21: =IFERROR(AVERAGEIFS(tbl_Oceny_z_zajęć[Punkty],tbl_Oceny_z_zajęć[Zajęcia],Obliczenia!$C21,tbl_Oceny_z_zajęć[Typ],Obliczenia!AD$5)*Ustawienia!F24,"") ->  | AE21: =IFERROR(AVERAGEIFS(tbl_Oceny_z_zajęć[Punkty],tbl_Oceny_z_zajęć[Zajęcia],Obliczenia!$C21,tbl_Oceny_z_zajęć[Typ],Obliczenia!AE$5)*Ustawienia!G24,"") ->  | AF21: =IFERROR(AVERAGEIFS(tbl_Oceny_z_zajęć[Punkty],tbl_Oceny_z_zajęć[Zajęcia],Obliczenia!$C21,tbl_Oceny_z_zajęć[Typ],Obliczenia!AF$5)*Ustawienia!H24,"") ->  | AG21: =IFERROR(AVERAGEIFS(tbl_Oceny_z_zajęć[Punkty],tbl_Oceny_z_zajęć[Zajęcia],Obliczenia!$C21,tbl_Oceny_z_zajęć[Typ],Obliczenia!AG$5)*Ustawienia!I24,"") ->  | AH21: =IFERROR(AVERAGEIFS(tbl_Oceny_z_zajęć[Punkty],tbl_Oceny_z_zajęć[Zajęcia],Obliczenia!$C21,tbl_Oceny_z_zajęć[Typ],Obliczenia!AH$5)*Ustawienia!J24,"") ->  | AI21: =IFERROR(AVERAGEIFS(tbl_Oceny_z_zajęć[Punkty],tbl_Oceny_z_zajęć[Zajęcia],Obliczenia!$C21,tbl_Oceny_z_zajęć[Typ],Obliczenia!AI$5)*Ustawienia!K24,"") ->  | AJ21: 0 | AK21: =SUMIFS(Ustawienia!E24:K24,Obliczenia!AC21:AI21,">0") -> 0
C22: =IF(Ustawienia!C25="","",Ustawienia!C25) ->  | AC22: =IFERROR(AVERAGEIFS(tbl_Oceny_z_zajęć[Punkty],tbl_Oceny_z_zajęć[Zajęcia],Obliczenia!$C22,tbl_Oceny_z_zajęć[Typ],Obliczenia!AC$5)*Ustawienia!E25,"") ->  | AD22: =IFERROR(AVERAGEIFS(tbl_Oceny_z_zajęć[Punkty],tbl_Oceny_z_zajęć[Zajęcia],Obliczenia!$C22,tbl_Oceny_z_zajęć[Typ],Obliczenia!AD$5)*Ustawienia!F25,"") ->  | AE22: =IFERROR(AVERAGEIFS(tbl_Oceny_z_zajęć[Punkty],tbl_Oceny_z_zajęć[Zajęcia],Obliczenia!$C22,tbl_Oceny_z_zajęć[Typ],Obliczenia!AE$5)*Ustawienia!G25,"") ->  | AF22: =IFERROR(AVERAGEIFS(tbl_Oceny_z_zajęć[Punkty],tbl_Oceny_z_zajęć[Zajęcia],Obliczenia!$C22,tbl_Oceny_z_zajęć[Typ],Obliczenia!AF$5)*Ustawienia!H25,"") ->  | AG22: =IFERROR(AVERAGEIFS(tbl_Oceny_z_zajęć[Punkty],tbl_Oceny_z_zajęć[Zajęcia],Obliczenia!$C22,tbl_Oceny_z_zajęć[Typ],Obliczenia!AG$5)*Ustawienia!I25,"") ->  | AH22: =IFERROR(AVERAGEIFS(tbl_Oceny_z_zajęć[Punkty],tbl_Oceny_z_zajęć[Zajęcia],Obliczenia!$C22,tbl_Oceny_z_zajęć[Typ],Obliczenia!AH$5)*Ustawienia!J25,"") ->  | AI22: =IFERROR(AVERAGEIFS(tbl_Oceny_z_zajęć[Punkty],tbl_Oceny_z_zajęć[Zajęcia],Obliczenia!$C22,tbl_Oceny_z_zajęć[Typ],Obliczenia!AI$5)*Ustawienia!K25,"") ->  | AJ22: 0 | AK22: =SUMIFS(Ustawienia!E25:K25,Obliczenia!AC22:AI22,">0") -> 0
C23: =IF(Ustawienia!C26="","",Ustawienia!C26) ->  | AC23: =IFERROR(AVERAGEIFS(tbl_Oceny_z_zajęć[Punkty],tbl_Oceny_z_zajęć[Zajęcia],Obliczenia!$C23,tbl_Oceny_z_zajęć[Typ],Obliczenia!AC$5)*Ustawienia!E26,"") ->  | AD23: =IFERROR(AVERAGEIFS(tbl_Oceny_z_zajęć[Punkty],tbl_Oceny_z_zajęć[Zajęcia],Obliczenia!$C23,tbl_Oceny_z_zajęć[Typ],Obliczenia!AD$5)*Ustawienia!F26,"") ->  | AE23: =IFERROR(AVERAGEIFS(tbl_Oceny_z_zajęć[Punkty],tbl_Oceny_z_zajęć[Zajęcia],Obliczenia!$C23,tbl_Oceny_z_zajęć[Typ],Obliczenia!AE$5)*Ustawienia!G26,"") ->  | AF23: =IFERROR(AVERAGEIFS(tbl_Oceny_z_zajęć[Punkty],tbl_Oceny_z_zajęć[Zajęcia],Obliczenia!$C23,tbl_Oceny_z_zajęć[Typ],Obliczenia!AF$5)*Ustawienia!H26,"") ->  | AG23: =IFERROR(AVERAGEIFS(tbl_Oceny_z_zajęć[Punkty],tbl_Oceny_z_zajęć[Zajęcia],Obliczenia!$C23,tbl_Oceny_z_zajęć[Typ],Obliczenia!AG$5)*Ustawienia!I26,"") ->  | AH23: =IFERROR(AVERAGEIFS(tbl_Oceny_z_zajęć[Punkty],tbl_Oceny_z_zajęć[Zajęcia],Obliczenia!$C23,tbl_Oceny_z_zajęć[Typ],Obliczenia!AH$5)*Ustawienia!J26,"") ->  | AI23: =IFERROR(AVERAGEIFS(tbl_Oceny_z_zajęć[Punkty],tbl_Oceny_z_zajęć[Zajęcia],Obliczenia!$C23,tbl_Oceny_z_zajęć[Typ],Obliczenia!AI$5)*Ustawienia!K26,"") ->  | AJ23: 0 | AK23: =SUMIFS(Ustawienia!E26:K26,Obliczenia!AC23:AI23,">0") -> 0
C24: =IF(Ustawienia!C27="","",Ustawienia!C27) ->  | AC24: =IFERROR(AVERAGEIFS(tbl_Oceny_z_zajęć[Punkty],tbl_Oceny_z_zajęć[Zajęcia],Obliczenia!$C24,tbl_Oceny_z_zajęć[Typ],Obliczenia!AC$5)*Ustawienia!E27,"") ->  | AD24: =IFERROR(AVERAGEIFS(tbl_Oceny_z_zajęć[Punkty],tbl_Oceny_z_zajęć[Zajęcia],Obliczenia!$C24,tbl_Oceny_z_zajęć[Typ],Obliczenia!AD$5)*Ustawienia!F27,"") ->  | AE24: =IFERROR(AVERAGEIFS(tbl_Oceny_z_zajęć[Punkty],tbl_Oceny_z_zajęć[Zajęcia],Obliczenia!$C24,tbl_Oceny_z_zajęć[Typ],Obliczenia!AE$5)*Ustawienia!G27,"") ->  | AF24: =IFERROR(AVERAGEIFS(tbl_Oceny_z_zajęć[Punkty],tbl_Oceny_z_zajęć[Zajęcia],Obliczenia!$C24,tbl_Oceny_z_zajęć[Typ],Obliczenia!AF$5)*Ustawienia!H27,"") ->  | AG24: =IFERROR(AVERAGEIFS(tbl_Oceny_z_zajęć[Punkty],tbl_Oceny_z_zajęć[Zajęcia],Obliczenia!$C24,tbl_Oceny_z_zajęć[Typ],Obliczenia!AG$5)*Ustawienia!I27,"") ->  | AH24: =IFERROR(AVERAGEIFS(tbl_Oceny_z_zajęć[Punkty],tbl_Oceny_z_zajęć[Zajęcia],Obliczenia!$C24,tbl_Oceny_z_zajęć[Typ],Obliczenia!AH$5)*Ustawienia!J27,"") ->  | AI24: =IFERROR(AVERAGEIFS(tbl_Oceny_z_zajęć[Punkty],tbl_Oceny_z_zajęć[Zajęcia],Obliczenia!$C24,tbl_Oceny_z_zajęć[Typ],Obliczenia!AI$5)*Ustawienia!K27,"") ->  | AJ24: 0 | AK24: =SUMIFS(Ustawienia!E27:K27,Obliczenia!AC24:AI24,">0") -> 0
C25: =IF(Ustawienia!C28="","",Ustawienia!C28) ->  | AC25: =IFERROR(AVERAGEIFS(tbl_Oceny_z_zajęć[Punkty],tbl_Oceny_z_zajęć[Zajęcia],Obliczenia!$C25,tbl_Oceny_z_zajęć[Typ],Obliczenia!AC$5)*Ustawienia!E28,"") ->  | AD25: =IFERROR(AVERAGEIFS(tbl_Oceny_z_zajęć[Punkty],tbl_Oceny_z_zajęć[Zajęcia],Obliczenia!$C25,tbl_Oceny_z_zajęć[Typ],Obliczenia!AD$5)*Ustawienia!F28,"") ->  | AE25: =IFERROR(AVERAGEIFS(tbl_Oceny_z_zajęć[Punkty],tbl_Oceny_z_zajęć[Zajęcia],Obliczenia!$C25,tbl_Oceny_z_zajęć[Typ],Obliczenia!AE$5)*Ustawienia!G28,"") ->  | AF25: =IFERROR(AVERAGEIFS(tbl_Oceny_z_zajęć[Punkty],tbl_Oceny_z_zajęć[Zajęcia],Obliczenia!$C25,tbl_Oceny_z_zajęć[Typ],Obliczenia!AF$5)*Ustawienia!H28,"") ->  | AG25: =IFERROR(AVERAGEIFS(tbl_Oceny_z_zajęć[Punkty],tbl_Oceny_z_zajęć[Zajęcia],Obliczenia!$C25,tbl_Oceny_z_zajęć[Typ],Obliczenia!AG$5)*Ustawienia!I28,"") ->  | AH25: =IFERROR(AVERAGEIFS(tbl_Oceny_z_zajęć[Punkty],tbl_Oceny_z_zajęć[Zajęcia],Obliczenia!$C25,tbl_Oceny_z_zajęć[Typ],Obliczenia!AH$5)*Ustawienia!J28,"") ->  | AI25: =IFERROR(AVERAGEIFS(tbl_Oceny_z_zajęć[Punkty],tbl_Oceny_z_zajęć[Zajęcia],Obliczenia!$C25,tbl_Oceny_z_zajęć[Typ],Obliczenia!AI$5)*Ustawienia!K28,"") ->  | AJ25: 0 | AK25: =SUMIFS(Ustawienia!E28:K28,Obliczenia!AC25:AI25,">0") -> 0
C26: =IF(Ustawienia!C29="","",Ustawienia!C29) ->  | AC26: =IFERROR(AVERAGEIFS(tbl_Oceny_z_zajęć[Punkty],tbl_Oceny_z_zajęć[Zajęcia],Obliczenia!$C26,tbl_Oceny_z_zajęć[Typ],Obliczenia!AC$5)*Ustawienia!E29,"") ->  | AD26: =IFERROR(AVERAGEIFS(tbl_Oceny_z_zajęć[Punkty],tbl_Oceny_z_zajęć[Zajęcia],Obliczenia!$C26,tbl_Oceny_z_zajęć[Typ],Obliczenia!AD$5)*Ustawienia!F29,"") ->  | AE26: =IFERROR(AVERAGEIFS(tbl_Oceny_z_zajęć[Punkty],tbl_Oceny_z_zajęć[Zajęcia],Obliczenia!$C26,tbl_Oceny_z_zajęć[Typ],Obliczenia!AE$5)*Ustawienia!G29,"") ->  | AF26: =IFERROR(AVERAGEIFS(tbl_Oceny_z_zajęć[Punkty],tbl_Oceny_z_zajęć[Zajęcia],Obliczenia!$C26,tbl_Oceny_z_zajęć[Typ],Obliczenia!AF$5)*Ustawienia!H29,"") ->  | AG26: =IFERROR(AVERAGEIFS(tbl_Oceny_z_zajęć[Punkty],tbl_Oceny_z_zajęć[Zajęcia],Obliczenia!$C26,tbl_Oceny_z_zajęć[Typ],Obliczenia!AG$5)*Ustawienia!I29,"") ->  | AH26: =IFERROR(AVERAGEIFS(tbl_Oceny_z_zajęć[Punkty],tbl_Oceny_z_zajęć[Zajęcia],Obliczenia!$C26,tbl_Oceny_z_zajęć[Typ],Obliczenia!AH$5)*Ustawienia!J29,"") ->  | AI26: =IFERROR(AVERAGEIFS(tbl_Oceny_z_zajęć[Punkty],tbl_Oceny_z_zajęć[Zajęcia],Obliczenia!$C26,tbl_Oceny_z_zajęć[Typ],Obliczenia!AI$5)*Ustawienia!K29,"") ->  | AJ26: 0 | AK26: =SUMIFS(Ustawienia!E29:K29,Obliczenia!AC26:AI26,">0") -> 0
C27: =IF(Ustawienia!C30="","",Ustawienia!C30) ->  | AC27: =IFERROR(AVERAGEIFS(tbl_Oceny_z_zajęć[Punkty],tbl_Oceny_z_zajęć[Zajęcia],Obliczenia!$C27,tbl_Oceny_z_zajęć[Typ],Obliczenia!AC$5)*Ustawienia!E30,"") ->  | AD27: =IFERROR(AVERAGEIFS(tbl_Oceny_z_zajęć[Punkty],tbl_Oceny_z_zajęć[Zajęcia],Obliczenia!$C27,tbl_Oceny_z_zajęć[Typ],Obliczenia!AD$5)*Ustawienia!F30,"") ->  | AE27: =IFERROR(AVERAGEIFS(tbl_Oceny_z_zajęć[Punkty],tbl_Oceny_z_zajęć[Zajęcia],Obliczenia!$C27,tbl_Oceny_z_zajęć[Typ],Obliczenia!AE$5)*Ustawienia!G30,"") ->  | AF27: =IFERROR(AVERAGEIFS(tbl_Oceny_z_zajęć[Punkty],tbl_Oceny_z_zajęć[Zajęcia],Obliczenia!$C27,tbl_Oceny_z_zajęć[Typ],Obliczenia!AF$5)*Ustawienia!H30,"") ->  | AG27: =IFERROR(AVERAGEIFS(tbl_Oceny_z_zajęć[Punkty],tbl_Oceny_z_zajęć[Zajęcia],Obliczenia!$C27,tbl_Oceny_z_zajęć[Typ],Obliczenia!AG$5)*Ustawienia!I30,"") ->  | AH27: =IFERROR(AVERAGEIFS(tbl_Oceny_z_zajęć[Punkty],tbl_Oceny_z_zajęć[Zajęcia],Obliczenia!$C27,tbl_Oceny_z_zajęć[Typ],Obliczenia!AH$5)*Ustawienia!J30,"") ->  | AI27: =IFERROR(AVERAGEIFS(tbl_Oceny_z_zajęć[Punkty],tbl_Oceny_z_zajęć[Zajęcia],Obliczenia!$C27,tbl_Oceny_z_zajęć[Typ],Obliczenia!AI$5)*Ustawienia!K30,"") ->  | AJ27: 0 | AK27: =SUMIFS(Ustawienia!E30:K30,Obliczenia!AC27:AI27,">0") -> 0
C28: =IF(Ustawienia!C31="","",Ustawienia!C31) ->  | AC28: =IFERROR(AVERAGEIFS(tbl_Oceny_z_zajęć[Punkty],tbl_Oceny_z_zajęć[Zajęcia],Obliczenia!$C28,tbl_Oceny_z_zajęć[Typ],Obliczenia!AC$5)*Ustawienia!E31,"") ->  | AD28: =IFERROR(AVERAGEIFS(tbl_Oceny_z_zajęć[Punkty],tbl_Oceny_z_zajęć[Zajęcia],Obliczenia!$C28,tbl_Oceny_z_zajęć[Typ],Obliczenia!AD$5)*Ustawienia!F31,"") ->  | AE28: =IFERROR(AVERAGEIFS(tbl_Oceny_z_zajęć[Punkty],tbl_Oceny_z_zajęć[Zajęcia],Obliczenia!$C28,tbl_Oceny_z_zajęć[Typ],Obliczenia!AE$5)*Ustawienia!G31,"") ->  | AF28: =IFERROR(AVERAGEIFS(tbl_Oceny_z_zajęć[Punkty],tbl_Oceny_z_zajęć[Zajęcia],Obliczenia!$C28,tbl_Oceny_z_zajęć[Typ],Obliczenia!AF$5)*Ustawienia!H31,"") ->  | AG28: =IFERROR(AVERAGEIFS(tbl_Oceny_z_zajęć[Punkty],tbl_Oceny_z_zajęć[Zajęcia],Obliczenia!$C28,tbl_Oceny_z_zajęć[Typ],Obliczenia!AG$5)*Ustawienia!I31,"") ->  | AH28: =IFERROR(AVERAGEIFS(tbl_Oceny_z_zajęć[Punkty],tbl_Oceny_z_zajęć[Zajęcia],Obliczenia!$C28,tbl_Oceny_z_zajęć[Typ],Obliczenia!AH$5)*Ustawienia!J31,"") ->  | AI28: =IFERROR(AVERAGEIFS(tbl_Oceny_z_zajęć[Punkty],tbl_Oceny_z_zajęć[Zajęcia],Obliczenia!$C28,tbl_Oceny_z_zajęć[Typ],Obliczenia!AI$5)*Ustawienia!K31,"") ->  | AJ28: 0 | AK28: =SUMIFS(Ustawienia!E31:K31,Obliczenia!AC28:AI28,">0") -> 0
C29: =IF(Ustawienia!C32="","",Ustawienia!C32) ->  | AC29: =IFERROR(AVERAGEIFS(tbl_Oceny_z_zajęć[Punkty],tbl_Oceny_z_zajęć[Zajęcia],Obliczenia!$C29,tbl_Oceny_z_zajęć[Typ],Obliczenia!AC$5)*Ustawienia!E32,"") ->  | AD29: =IFERROR(AVERAGEIFS(tbl_Oceny_z_zajęć[Punkty],tbl_Oceny_z_zajęć[Zajęcia],Obliczenia!$C29,tbl_Oceny_z_zajęć[Typ],Obliczenia!AD$5)*Ustawienia!F32,"") ->  | AE29: =IFERROR(AVERAGEIFS(tbl_Oceny_z_zajęć[Punkty],tbl_Oceny_z_zajęć[Zajęcia],Obliczenia!$C29,tbl_Oceny_z_zajęć[Typ],Obliczenia!AE$5)*Ustawienia!G32,"") ->  | AF29: =IFERROR(AVERAGEIFS(tbl_Oceny_z_zajęć[Punkty],tbl_Oceny_z_zajęć[Zajęcia],Obliczenia!$C29,tbl_Oceny_z_zajęć[Typ],Obliczenia!AF$5)*Ustawienia!H32,"") ->  | AG29: =IFERROR(AVERAGEIFS(tbl_Oceny_z_zajęć[Punkty],tbl_Oceny_z_zajęć[Zajęcia],Obliczenia!$C29,tbl_Oceny_z_zajęć[Typ],Obliczenia!AG$5)*Ustawienia!I32,"") ->  | AH29: =IFERROR(AVERAGEIFS(tbl_Oceny_z_zajęć[Punkty],tbl_Oceny_z_zajęć[Zajęcia],Obliczenia!$C29,tbl_Oceny_z_zajęć[Typ],Obliczenia!AH$5)*Ustawienia!J32,"") ->  | AI29: =IFERROR(AVERAGEIFS(tbl_Oceny_z_zajęć[Punkty],tbl_Oceny_z_zajęć[Zajęcia],Obliczenia!$C29,tbl_Oceny_z_zajęć[Typ],Obliczenia!AI$5)*Ustawienia!K32,"") ->  | AJ29: 0 | AK29: =SUMIFS(Ustawienia!E32:K32,Obliczenia!AC29:AI29,">0") -> 0
C30: =IF(Ustawienia!C33="","",Ustawienia!C33) ->  | AC30: =IFERROR(AVERAGEIFS(tbl_Oceny_z_zajęć[Punkty],tbl_Oceny_z_zajęć[Zajęcia],Obliczenia!$C30,tbl_Oceny_z_zajęć[Typ],Obliczenia!AC$5)*Ustawienia!E33,"") ->  | AD30: =IFERROR(AVERAGEIFS(tbl_Oceny_z_zajęć[Punkty],tbl_Oceny_z_zajęć[Zajęcia],Obliczenia!$C30,tbl_Oceny_z_zajęć[Typ],Obliczenia!AD$5)*Ustawienia!F33,"") ->  | AE30: =IFERROR(AVERAGEIFS(tbl_Oceny_z_zajęć[Punkty],tbl_Oceny_z_zajęć[Zajęcia],Obliczenia!$C30,tbl_Oceny_z_zajęć[Typ],Obliczenia!AE$5)*Ustawienia!G33,"") ->  | AF30: =IFERROR(AVERAGEIFS(tbl_Oceny_z_zajęć[Punkty],tbl_Oceny_z_zajęć[Zajęcia],Obliczenia!$C30,tbl_Oceny_z_zajęć[Typ],Obliczenia!AF$5)*Ustawienia!H33,"") ->  | AG30: =IFERROR(AVERAGEIFS(tbl_Oceny_z_zajęć[Punkty],tbl_Oceny_z_zajęć[Zajęcia],Obliczenia!$C30,tbl_Oceny_z_zajęć[Typ],Obliczenia!AG$5)*Ustawienia!I33,"") ->  | AH30: =IFERROR(AVERAGEIFS(tbl_Oceny_z_zajęć[Punkty],tbl_Oceny_z_zajęć[Zajęcia],Obliczenia!$C30,tbl_Oceny_z_zajęć[Typ],Obliczenia!AH$5)*Ustawienia!J33,"") ->  | AI30: =IFERROR(AVERAGEIFS(tbl_Oceny_z_zajęć[Punkty],tbl_Oceny_z_zajęć[Zajęcia],Obliczenia!$C30,tbl_Oceny_z_zajęć[Typ],Obliczenia!AI$5)*Ustawienia!K33,"") ->  | AJ30: 0 | AK30: =SUMIFS(Ustawienia!E33:K33,Obliczenia!AC30:AI30,">0") -> 0
B33: 1 | C33: ='Śledzenie ocen'!C4&COUNTIF('Śledzenie ocen'!$C$4:C4,'Śledzenie ocen'!C4) -> Współczesny język francuski1
B34: 2 | C34: ='Śledzenie ocen'!C5&COUNTIF('Śledzenie ocen'!$C$4:C5,'Śledzenie ocen'!C5) -> Zaawansowane programowanie w języku Java1
B35: 3 | C35: ='Śledzenie ocen'!C6&COUNTIF('Śledzenie ocen'!$C$4:C6,'Śledzenie ocen'!C6) -> Hiszpański1
B36: 4 | C36: ='Śledzenie ocen'!C7&COUNTIF('Śledzenie ocen'!$C$4:C7,'Śledzenie ocen'!C7) -> Fizyka teoretyczna1
B37: 5 | C37: ='Śledzenie ocen'!C8&COUNTIF('Śledzenie ocen'!$C$4:C8,'Śledzenie ocen'!C8) -> Współczesny język francuski2
B38: 6 | C38: ='Śledzenie ocen'!C9&COUNTIF('Śledzenie ocen'!$C$4:C9,'Śledzenie ocen'!C9) -> Współczesny język francuski3
B39: 7 | C39: ='Śledzenie ocen'!C10&COUNTIF('Śledzenie ocen'!$C$4:C10,'Śledzenie ocen'!C10) -> Wypracowania1
B40: 8 | C40: ='Śledzenie ocen'!C11&COUNTIF('Śledzenie ocen'!$C$4:C11,'Śledzenie ocen'!C11) -> Matematyka 11
B41: 9 | C41: ='Śledzenie ocen'!C12&COUNTIF('Śledzenie ocen'!$C$4:C12,'Śledzenie ocen'!C12) -> Matematyka 21
B42: 10 | C42: ='Śledzenie ocen'!C13&COUNTIF('Śledzenie ocen'!$C$4:C13,'Śledzenie ocen'!C13) -> Matematyka 12
B43: 11 | C43: ='Śledzenie ocen'!C14&COUNTIF('Śledzenie ocen'!$C$4:C14,'Śledzenie ocen'!C14) -> Matematyka 22
B44: 12 | C44: ='Śledzenie ocen'!C15&COUNTIF('Śledzenie ocen'!$C$4:C15,'Śledzenie ocen'!C15) -> 0
B45: 13 | C45: ='Śledzenie ocen'!C16&COUNTIF('Śledzenie ocen'!$C$4:C16,'Śledzenie ocen'!C16) -> 0
B46: 14 | C46: ='Śledzenie ocen'!C17&COUNTIF('Śledzenie ocen'!$C$4:C17,'Śledzenie ocen'!C17) -> 0
B47: 15 | C47: ='Śledzenie ocen'!C18&COUNTIF('Śledzenie ocen'!$C$4:C18,'Śledzenie ocen'!C18) -> 0
B48: 16 | C48: ='Śledzenie ocen'!C19&COUNTIF('Śledzenie ocen'!$C$4:C19,'Śledzenie ocen'!C19) -> 0
B49: 17 | C49: ='Śledzenie ocen'!C20&COUNTIF('Śledzenie ocen'!$C$4:C20,'Śledzenie ocen'!C20) -> 0
B50: 18 | C50: ='Śledzenie ocen'!C21&COUNTIF('Śledzenie ocen'!$C$4:C21,'Śledzenie ocen'!C21) -> 0
B51: 19 | C51: ='Śledzenie ocen'!C22&COUNTIF('Śledzenie ocen'!$C$4:C22,'Śledzenie ocen'!C22) -> 0
B52: 20 | C52: ='Śledzenie ocen'!C23&COUNTIF('Śledzenie ocen'!$C$4:C23,'Śledzenie ocen'!C23) -> 0
B53: 21 | C53: ='Śledzenie ocen'!C24&COUNTIF('Śledzenie ocen'!$C$4:C24,'Śledzenie ocen'!C24) -> 0
B54: 22 | C54: ='Śledzenie ocen'!C25&COUNTIF('Śledzenie ocen'!$C$4:C25,'Śledzenie ocen'!C25) -> 0
B55: 23 | C55: ='Śledzenie ocen'!C26&COUNTIF('Śledzenie ocen'!$C$4:C26,'Śledzenie ocen'!C26) -> 0
B56: 24 | C56: ='Śledzenie ocen'!C27&COUNTIF('Śledzenie ocen'!$C$4:C27,'Śledzenie ocen'!C27) -> 0
B57: 25 | C57: ='Śledzenie ocen'!C28&COUNTIF('Śledzenie ocen'!$C$4:C28,'Śledzenie ocen'!C28) -> 0
B58: 26 | C58: ='Śledzenie ocen'!C29&COUNTIF('Śledzenie ocen'!$C$4:C29,'Śledzenie ocen'!C29) -> 0
B59: 27 | C59: ='Śledzenie ocen'!C30&COUNTIF('Śledzenie ocen'!$C$4:C30,'Śledzenie ocen'!C30) -> 0
B60: 28 | C60: ='Śledzenie ocen'!C31&COUNTIF('Śledzenie ocen'!$C$4:C31,'Śledzenie ocen'!C31) -> 0
B61: 29 | C61: ='Śledzenie ocen'!C32&COUNTIF('Śledzenie ocen'!$C$4:C32,'Śledzenie ocen'!C32) -> 0
B62: 30 | C62: ='Śledzenie ocen'!C33&COUNTIF('Śledzenie ocen'!$C$4:C33,'Śledzenie ocen'!C33) -> 0
B63: 31 | C63: ='Śledzenie ocen'!C34&COUNTIF('Śledzenie ocen'!$C$4:C34,'Śledzenie ocen'!C34) -> 0
B64: 32 | C64: ='Śledzenie ocen'!C35&COUNTIF('Śledzenie ocen'!$C$4:C35,'Śledzenie ocen'!C35) -> 0
B65: 33 | C65: ='Śledzenie ocen'!C36&COUNTIF('Śledzenie ocen'!$C$4:C36,'Śledzenie ocen'!C36) -> 0
B66: 34 | C66: ='Śledzenie ocen'!C37&COUNTIF('Śledzenie ocen'!$C$4:C37,'Śledzenie ocen'!C37) -> 0
B67: 35 | C67: ='Śledzenie ocen'!C38&COUNTIF('Śledzenie ocen'!$C$4:C38,'Śledzenie ocen'!C38) -> 0
B68: 36 | C68: ='Śledzenie ocen'!C39&COUNTIF('Śledzenie ocen'!$C$4:C39,'Śledzenie ocen'!C39) -> 0
B69: 37 | C69: ='Śledzenie ocen'!C40&COUNTIF('Śledzenie ocen'!$C$4:C40,'Śledzenie ocen'!C40) -> 0
B70: 38 | C70: ='Śledzenie ocen'!C41&COUNTIF('Śledzenie ocen'!$C$4:C41,'Śledzenie ocen'!C41) -> 0
B71: 39 | C71: ='Śledzenie ocen'!C42&COUNTIF('Śledzenie ocen'!$C$4:C42,'Śledzenie ocen'!C42) -> 0
B72: 40 | C72: ='Śledzenie ocen'!C43&COUNTIF('Śledzenie ocen'!$C$4:C43,'Śledzenie ocen'!C43) -> 0
B73: 41 | C73: ='Śledzenie ocen'!C44&COUNTIF('Śledzenie ocen'!$C$4:C44,'Śledzenie ocen'!C44) -> 0
B74: 42 | C74: ='Śledzenie ocen'!C45&COUNTIF('Śledzenie ocen'!$C$4:C45,'Śledzenie ocen'!C45) -> 0
B75: 43 | C75: ='Śledzenie ocen'!C46&COUNTIF('Śledzenie ocen'!$C$4:C46,'Śledzenie ocen'!C46) -> 0
B76: 44 | C76: ='Śledzenie ocen'!C47&COUNTIF('Śledzenie ocen'!$C$4:C47,'Śledzenie ocen'!C47) -> 0
B77: 45 | C77: ='Śledzenie ocen'!C48&COUNTIF('Śledzenie ocen'!$C$4:C48,'Śledzenie ocen'!C48) -> 0
B78: 46 | C78: ='Śledzenie ocen'!C49&COUNTIF('Śledzenie ocen'!$C$4:C49,'Śledzenie ocen'!C49) -> 0
B79: 47 | C79: ='Śledzenie ocen'!C50&COUNTIF('Śledzenie ocen'!$C$4:C50,'Śledzenie ocen'!C50) -> 0
B80: 48 | C80: ='Śledzenie ocen'!C51&COUNTIF('Śledzenie ocen'!$C$4:C51,'Śledzenie ocen'!C51) -> 0
B81: 49 | C81: ='Śledzenie ocen'!C52&COUNTIF('Śledzenie ocen'!$C$4:C52,'Śledzenie ocen'!C52) -> 0
B82: 50 | C82: ='Śledzenie ocen'!C53&COUNTIF('Śledzenie ocen'!$C$4:C53,'Śledzenie ocen'!C53) -> 0
B83: 51 | C83: ='Śledzenie ocen'!C54&COUNTIF('Śledzenie ocen'!$C$4:C54,'Śledzenie ocen'!C54) -> 0
B84: 52 | C84: ='Śledzenie ocen'!C55&COUNTIF('Śledzenie ocen'!$C$4:C55,'Śledzenie ocen'!C55) -> 0
B85: 53 | C85: ='Śledzenie ocen'!C56&COUNTIF('Śledzenie ocen'!$C$4:C56,'Śledzenie ocen'!C56) -> 0
B86: 54 | C86: ='Śledzenie ocen'!C57&COUNTIF('Śledzenie ocen'!$C$4:C57,'Śledzenie ocen'!C57) -> 0
B87: 55 | C87: ='Śledzenie ocen'!C58&COUNTIF('Śledzenie ocen'!$C$4:C58,'Śledzenie ocen'!C58) -> 0
B88: 56 | C88: ='Śledzenie ocen'!C59&COUNTIF('Śledzenie ocen'!$C$4:C59,'Śledzenie ocen'!C59) -> 0
B89: 57 | C89: ='Śledzenie ocen'!C60&COUNTIF('Śledzenie ocen'!$C$4:C60,'Śledzenie ocen'!C60) -> 0
B90: 58 | C90: ='Śledzenie ocen'!C61&COUNTIF('Śledzenie ocen'!$C$4:C61,'Śledzenie ocen'!C61) -> 0
B91: 59 | C91: ='Śledzenie ocen'!C62&COUNTIF('Śledzenie ocen'!$C$4:C62,'Śledzenie ocen'!C62) -> 0
B92: 60 | C92: ='Śledzenie ocen'!C63&COUNTIF('Śledzenie ocen'!$C$4:C63,'Śledzenie ocen'!C63) -> 0
B93: 61 | C93: ='Śledzenie ocen'!C64&COUNTIF('Śledzenie ocen'!$C$4:C64,'Śledzenie ocen'!C64) -> 0
B94: 62 | C94: ='Śledzenie ocen'!C65&COUNTIF('Śledzenie ocen'!$C$4:C65,'Śledzenie ocen'!C65) -> 0
B95: 63 | C95: ='Śledzenie ocen'!C66&COUNTIF('Śledzenie ocen'!$C$4:C66,'Śledzenie ocen'!C66) -> 0
B96: 64 | C96: ='Śledzenie ocen'!C67&COUNTIF('Śledzenie ocen'!$C$4:C67,'Śledzenie ocen'!C67) -> 0
B97: 65 | C97: ='Śledzenie ocen'!C68&COUNTIF('Śledzenie ocen'!$C$4:C68,'Śledzenie ocen'!C68) -> 0
B98: 66 | C98: ='Śledzenie ocen'!C69&COUNTIF('Śledzenie ocen'!$C$4:C69,'Śledzenie ocen'!C69) -> 0
B99: 67 | C99: ='Śledzenie ocen'!C70&COUNTIF('Śledzenie ocen'!$C$4:C70,'Śledzenie ocen'!C70) -> 0
B100: 68 | C100: ='Śledzenie ocen'!C71&COUNTIF('Śledzenie ocen'!$C$4:C71,'Śledzenie ocen'!C71) -> 0
B101: 69 | C101: ='Śledzenie ocen'!C72&COUNTIF('Śledzenie ocen'!$C$4:C72,'Śledzenie ocen'!C72) -> 0
B102: 70 | C102: ='Śledzenie ocen'!C73&COUNTIF('Śledzenie ocen'!$C$4:C73,'Śledzenie ocen'!C73) -> 0
B103: 71 | C103: ='Śledzenie ocen'!C74&COUNTIF('Śledzenie ocen'!$C$4:C74,'Śledzenie ocen'!C74) -> 0
B104: 72 | C104: ='Śledzenie ocen'!C75&COUNTIF('Śledzenie ocen'!$C$4:C75,'Śledzenie ocen'!C75) -> 0
B105: 73 | C105: ='Śledzenie ocen'!C76&COUNTIF('Śledzenie ocen'!$C$4:C76,'Śledzenie ocen'!C76) -> 0
B106: 74 | C106: ='Śledzenie ocen'!C77&COUNTIF('Śledzenie ocen'!$C$4:C77,'Śledzenie ocen'!C77) -> 0
B107: 75 | C107: ='Śledzenie ocen'!C78&COUNTIF('Śledzenie ocen'!$C$4:C78,'Śledzenie ocen'!C78) -> 0
B108: 76 | C108: ='Śledzenie ocen'!C79&COUNTIF('Śledzenie ocen'!$C$4:C79,'Śledzenie ocen'!C79) -> 0
B109: 77 | C109: ='Śledzenie ocen'!C80&COUNTIF('Śledzenie ocen'!$C$4:C80,'Śledzenie ocen'!C80) -> 0
B110: 78 | C110: ='Śledzenie ocen'!C81&COUNTIF('Śledzenie ocen'!$C$4:C81,'Śledzenie ocen'!C81) -> 0
B111: 79 | C111: ='Śledzenie ocen'!C82&COUNTIF('Śledzenie ocen'!$C$4:C82,'Śledzenie ocen'!C82) -> 0
B112: 80 | C112: ='Śledzenie ocen'!C83&COUNTIF('Śledzenie ocen'!$C$4:C83,'Śledzenie ocen'!C83) -> 0
B113: 81 | C113: ='Śledzenie ocen'!C84&COUNTIF('Śledzenie ocen'!$C$4:C84,'Śledzenie ocen'!C84) -> 0
B114: 82 | C114: ='Śledzenie ocen'!C85&COUNTIF('Śledzenie ocen'!$C$4:C85,'Śledzenie ocen'!C85) -> 0
B115: 83 | C115: ='Śledzenie ocen'!C86&COUNTIF('Śledzenie ocen'!$C$4:C86,'Śledzenie ocen'!C86) -> 0
B116: 84 | C116: ='Śledzenie ocen'!C87&COUNTIF('Śledzenie ocen'!$C$4:C87,'Śledzenie ocen'!C87) -> 0
B117: 85 | C117: ='Śledzenie ocen'!C88&COUNTIF('Śledzenie ocen'!$C$4:C88,'Śledzenie ocen'!C88) -> 0
B118: 86 | C118: ='Śledzenie ocen'!C89&COUNTIF('Śledzenie ocen'!$C$4:C89,'Śledzenie ocen'!C89) -> 0
B119: 87 | C119: ='Śledzenie ocen'!C90&COUNTIF('Śledzenie ocen'!$C$4:C90,'Śledzenie ocen'!C90) -> 0
B120: 88 | C120: ='Śledzenie ocen'!C91&COUNTIF('Śledzenie ocen'!$C$4:C91,'Śledzenie ocen'!C91) -> 0
B121: 89 | C121: ='Śledzenie ocen'!C92&COUNTIF('Śledzenie ocen'!$C$4:C92,'Śledzenie ocen'!C92) -> 0
B122: 90 | C122: ='Śledzenie ocen'!C93&COUNTIF('Śledzenie ocen'!$C$4:C93,'Śledzenie ocen'!C93) -> 0
B123: 91 | C123: ='Śledzenie ocen'!C94&COUNTIF('Śledzenie ocen'!$C$4:C94,'Śledzenie ocen'!C94) -> 0
B124: 92 | C124: ='Śledzenie ocen'!C95&COUNTIF('Śledzenie ocen'!$C$4:C95,'Śledzenie ocen'!C95) -> 0
B125: 93 | C125: ='Śledzenie ocen'!C96&COUNTIF('Śledzenie ocen'!$C$4:C96,'Śledzenie ocen'!C96) -> 0
B126: 94 | C126: ='Śledzenie ocen'!C97&COUNTIF('Śledzenie ocen'!$C$4:C97,'Śledzenie ocen'!C97) -> 0
B127: 95 | C127: ='Śledzenie ocen'!C98&COUNTIF('Śledzenie ocen'!$C$4:C98,'Śledzenie ocen'!C98) -> 0
B128: 96 | C128: ='Śledzenie ocen'!C99&COUNTIF('Śledzenie ocen'!$C$4:C99,'Śledzenie ocen'!C99) -> 0
B129: 97 | C129: ='Śledzenie ocen'!C100&COUNTIF('Śledzenie ocen'!$C$4:C100,'Śledzenie ocen'!C100) -> 0
B130: 98 | C130: ='Śledzenie ocen'!C101&COUNTIF('Śledzenie ocen'!$C$4:C101,'Śledzenie ocen'!C101) -> 0
B131: 99 | C131: ='Śledzenie ocen'!C102&COUNTIF('Śledzenie ocen'!$C$4:C102,'Śledzenie ocen'!C102) -> 0
B132: 100 | C132: ='Śledzenie ocen'!C103&COUNTIF('Śledzenie ocen'!$C$4:C103,'Śledzenie ocen'!C103) -> 0
B133: 101 | C133: ='Śledzenie ocen'!C104&COUNTIF('Śledzenie ocen'!$C$4:C104,'Śledzenie ocen'!C104) -> 0
B134: 102 | C134: ='Śledzenie ocen'!C105&COUNTIF('Śledzenie ocen'!$C$4:C105,'Śledzenie ocen'!C105) -> 0
B135: 103 | C135: ='Śledzenie ocen'!C106&COUNTIF('Śledzenie ocen'!$C$4:C106,'Śledzenie ocen'!C106) -> 0
B136: 104 | C136: ='Śledzenie ocen'!C107&COUNTIF('Śledzenie ocen'!$C$4:C107,'Śledzenie ocen'!C107) -> 0
B137: 105 | C137: ='Śledzenie ocen'!C108&COUNTIF('Śledzenie ocen'!$C$4:C108,'Śledzenie ocen'!C108) -> 0
B138: 106 | C138: ='Śledzenie ocen'!C109&COUNTIF('Śledzenie ocen'!$C$4:C109,'Śledzenie ocen'!C109) -> 0
B139: 107 | C139: ='Śledzenie ocen'!C110&COUNTIF('Śledzenie ocen'!$C$4:C110,'Śledzenie ocen'!C110) -> 0
B140: 108 | C140: ='Śledzenie ocen'!C111&COUNTIF('Śledzenie ocen'!$C$4:C111,'Śledzenie ocen'!C111) -> 0
B141: 109 | C141: ='Śledzenie ocen'!C112&COUNTIF('Śledzenie ocen'!$C$4:C112,'Śledzenie ocen'!C112) -> 0
B142: 110 | C142: ='Śledzenie ocen'!C113&COUNTIF('Śledzenie ocen'!$C$4:C113,'Śledzenie ocen'!C113) -> 0
B143: 111 | C143: ='Śledzenie ocen'!C114&COUNTIF('Śledzenie ocen'!$C$4:C114,'Śledzenie ocen'!C114) -> 0
B144: 112 | C144: ='Śledzenie ocen'!C115&COUNTIF('Śledzenie ocen'!$C$4:C115,'Śledzenie ocen'!C115) -> 0
B145: 113 | C145: ='Śledzenie ocen'!C116&COUNTIF('Śledzenie ocen'!$C$4:C116,'Śledzenie ocen'!C116) -> 0
B146: 114 | C146: ='Śledzenie ocen'!C117&COUNTIF('Śledzenie ocen'!$C$4:C117,'Śledzenie ocen'!C117) -> 0
B147: 115 | C147: ='Śledzenie ocen'!C118&COUNTIF('Śledzenie ocen'!$C$4:C118,'Śledzenie ocen'!C118) -> 0
B148: 116 | C148: ='Śledzenie ocen'!C119&COUNTIF('Śledzenie ocen'!$C$4:C119,'Śledzenie ocen'!C119) -> 0
B149: 117 | C149: ='Śledzenie ocen'!C120&COUNTIF('Śledzenie ocen'!$C$4:C120,'Śledzenie ocen'!C120) -> 0
B150: 118 | C150: ='Śledzenie ocen'!C121&COUNTIF('Śledzenie ocen'!$C$4:C121,'Śledzenie ocen'!C121) -> 0
B151: 119 | C151: ='Śledzenie ocen'!C122&COUNTIF('Śledzenie ocen'!$C$4:C122,'Śledzenie ocen'!C122) -> 0
B152: 120 | C152: ='Śledzenie ocen'!C123&COUNTIF('Śledzenie ocen'!$C$4:C123,'Śledzenie ocen'!C123) -> 0
B153: 121 | C153: ='Śledzenie ocen'!C124&COUNTIF('Śledzenie ocen'!$C$4:C124,'Śledzenie ocen'!C124) -> 0
B154: 122 | C154: ='Śledzenie ocen'!C125&COUNTIF('Śledzenie ocen'!$C$4:C125,'Śledzenie ocen'!C125) -> 0
B155: 123 | C155: ='Śledzenie ocen'!C126&COUNTIF('Śledzenie ocen'!$C$4:C126,'Śledzenie ocen'!C126) -> 0
B156: 124 | C156: ='Śledzenie ocen'!C127&COUNTIF('Śledzenie ocen'!$C$4:C127,'Śledzenie ocen'!C127) -> 0
B157: 125 | C157: ='Śledzenie ocen'!C128&COUNTIF('Śledzenie ocen'!$C$4:C128,'Śledzenie ocen'!C128) -> 0
B158: 126 | C158: ='Śledzenie ocen'!C129&COUNTIF('Śledzenie ocen'!$C$4:C129,'Śledzenie ocen'!C129) -> 0
B159: 127 | C159: ='Śledzenie ocen'!C130&COUNTIF('Śledzenie ocen'!$C$4:C130,'Śledzenie ocen'!C130) -> 0
B160: 128 | C160: ='Śledzenie ocen'!C131&COUNTIF('Śledzenie ocen'!$C$4:C131,'Śledzenie ocen'!C131) -> 0
B161: 129 | C161: ='Śledzenie ocen'!C132&COUNTIF('Śledzenie ocen'!$C$4:C132,'Śledzenie ocen'!C132) -> 0
B162: 130 | C162: ='Śledzenie ocen'!C133&COUNTIF('Śledzenie ocen'!$C$4:C133,'Śledzenie ocen'!C133) -> 0
B163: 131 | C163: ='Śledzenie ocen'!C134&COUNTIF('Śledzenie ocen'!$C$4:C134,'Śledzenie ocen'!C134) -> 0
B164: 132 | C164: ='Śledzenie ocen'!C135&COUNTIF('Śledzenie ocen'!$C$4:C135,'Śledzenie ocen'!C135) -> 0
B165: 133 | C165: ='Śledzenie ocen'!C136&COUNTIF('Śledzenie ocen'!$C$4:C136,'Śledzenie ocen'!C136) -> 0
B166: 134 | C166: ='Śledzenie ocen'!C137&COUNTIF('Śledzenie ocen'!$C$4:C137,'Śledzenie ocen'!C137) -> 0
B167: 135 | C167: ='Śledzenie ocen'!C138&COUNTIF('Śledzenie ocen'!$C$4:C138,'Śledzenie ocen'!C138) -> 0
B168: 136 | C168: ='Śledzenie ocen'!C139&COUNTIF('Śledzenie ocen'!$C$4:C139,'Śledzenie ocen'!C139) -> 0
B169: 137 | C169: ='Śledzenie ocen'!C140&COUNTIF('Śledzenie ocen'!$C$4:C140,'Śledzenie ocen'!C140) -> 0
B170: 138 | C170: ='Śledzenie ocen'!C141&COUNTIF('Śledzenie ocen'!$C$4:C141,'Śledzenie ocen'!C141) -> 0
B171: 139 | C171: ='Śledzenie ocen'!C142&COUNTIF('Śledzenie ocen'!$C$4:C142,'Śledzenie ocen'!C142) -> 0
B172: 140 | C172: ='Śledzenie ocen'!C143&COUNTIF('Śledzenie ocen'!$C$4:C143,'Śledzenie ocen'!C143) -> 0
B173: 141 | C173: ='Śledzenie ocen'!C144&COUNTIF('Śledzenie ocen'!$C$4:C144,'Śledzenie ocen'!C144) -> 0
B174: 142 | C174: ='Śledzenie ocen'!C145&COUNTIF('Śledzenie ocen'!$C$4:C145,'Śledzenie ocen'!C145) -> 0
B175: 143 | C175: ='Śledzenie ocen'!C146&COUNTIF('Śledzenie ocen'!$C$4:C146,'Śledzenie ocen'!C146) -> 0
B176: 144 | C176: ='Śledzenie ocen'!C147&COUNTIF('Śledzenie ocen'!$C$4:C147,'Śledzenie ocen'!C147) -> 0
B177: 145 | C177: ='Śledzenie ocen'!C148&COUNTIF('Śledzenie ocen'!$C$4:C148,'Śledzenie ocen'!C148) -> 0
B178: 146 | C178: ='Śledzenie ocen'!C149&COUNTIF('Śledzenie ocen'!$C$4:C149,'Śledzenie ocen'!C149) -> 0
B179: 147 | C179: ='Śledzenie ocen'!C150&COUNTIF('Śledzenie ocen'!$C$4:C150,'Śledzenie ocen'!C150) -> 0
B180: 148 | C180: ='Śledzenie ocen'!C151&COUNTIF('Śledzenie ocen'!$C$4:C151,'Śledzenie ocen'!C151) -> 0
B181: 149 | C181: ='Śledzenie ocen'!C152&COUNTIF('Śledzenie ocen'!$C$4:C152,'Śledzenie ocen'!C152) -> 0
B182: 150 | C182: ='Śledzenie ocen'!C153&COUNTIF('Śledzenie ocen'!$C$4:C153,'Śledzenie ocen'!C153) -> 0
B183: 151 | C183: ='Śledzenie ocen'!C154&COUNTIF('Śledzenie ocen'!$C$4:C154,'Śledzenie ocen'!C154) -> 0
B184: 152 | C184: ='Śledzenie ocen'!C155&COUNTIF('Śledzenie ocen'!$C$4:C155,'Śledzenie ocen'!C155) -> 0
B185: 153 | C185: ='Śledzenie ocen'!C156&COUNTIF('Śledzenie ocen'!$C$4:C156,'Śledzenie ocen'!C156) -> 0
B186: 154 | C186: ='Śledzenie ocen'!C157&COUNTIF('Śledzenie ocen'!$C$4:C157,'Śledzenie ocen'!C157) -> 0
B187: 155 | C187: ='Śledzenie ocen'!C158&COUNTIF('Śledzenie ocen'!$C$4:C158,'Śledzenie ocen'!C158) -> 0
B188: 156 | C188: ='Śledzenie ocen'!C159&COUNTIF('Śledzenie ocen'!$C$4:C159,'Śledzenie ocen'!C159) -> 0
B189: 157 | C189: ='Śledzenie ocen'!C160&COUNTIF('Śledzenie ocen'!$C$4:C160,'Śledzenie ocen'!C160) -> 0
B190: 158 | C190: ='Śledzenie ocen'!C161&COUNTIF('Śledzenie ocen'!$C$4:C161,'Śledzenie ocen'!C161) -> 0
B191: 159 | C191: ='Śledzenie ocen'!C162&COUNTIF('Śledzenie ocen'!$C$4:C162,'Śledzenie ocen'!C162) -> 0
B192: 160 | C192: ='Śledzenie ocen'!C163&COUNTIF('Śledzenie ocen'!$C$4:C163,'Śledzenie ocen'!C163) -> 0
B193: 161 | C193: ='Śledzenie ocen'!C164&COUNTIF('Śledzenie ocen'!$C$4:C164,'Śledzenie ocen'!C164) -> 0
B194: 162 | C194: ='Śledzenie ocen'!C165&COUNTIF('Śledzenie ocen'!$C$4:C165,'Śledzenie ocen'!C165) -> 0
B195: 163 | C195: ='Śledzenie ocen'!C166&COUNTIF('Śledzenie ocen'!$C$4:C166,'Śledzenie ocen'!C166) -> 0
B196: 164 | C196: ='Śledzenie ocen'!C167&COUNTIF('Śledzenie ocen'!$C$4:C167,'Śledzenie ocen'!C167) -> 0
B197: 165 | C197: ='Śledzenie ocen'!C168&COUNTIF('Śledzenie ocen'!$C$4:C168,'Śledzenie ocen'!C168) -> 0
B198: 166 | C198: ='Śledzenie ocen'!C169&COUNTIF('Śledzenie ocen'!$C$4:C169,'Śledzenie ocen'!C169) -> 0
B199: 167 | C199: ='Śledzenie ocen'!C170&COUNTIF('Śledzenie ocen'!$C$4:C170,'Śledzenie ocen'!C170) -> 0
B200: 168 | C200: ='Śledzenie ocen'!C171&COUNTIF('Śledzenie ocen'!$C$4:C171,'Śledzenie ocen'!C171) -> 0
B201: 169 | C201: ='Śledzenie ocen'!C172&COUNTIF('Śledzenie ocen'!$C$4:C172,'Śledzenie ocen'!C172) -> 0
B202: 170 | C202: ='Śledzenie ocen'!C173&COUNTIF('Śledzenie ocen'!$C$4:C173,'Śledzenie ocen'!C173) -> 0
B203: 171 | C203: ='Śledzenie ocen'!C174&COUNTIF('Śledzenie ocen'!$C$4:C174,'Śledzenie ocen'!C174) -> 0
... 454 more rows
